{"text_format":"1","workbook":"xlsx","n_sheets":11,"sheets":["sifarnik","Списак капиталних пројеката","списак","по изворима и контима ","K3","ipa-šifrarnik","Funkcije","korisnici","k4","izvori","projekti"],"not_rendered":{"charts":0,"images":0,"macros":1,"external_links":0,"defined_names":10,"comments":0,"pivot_tables":0},"unopened":[],"bounds":{"document_bytes":16777216,"sheet_cells":100000,"rows_first":2000,"rows_last":500,"rows_between":2000,"halvings":0,"cell_chars":16384,"cell_head_chars":4096},"cells_cut":0,"cells_raw":0,"read":"whole","date_system":"1900"}

{"sheet":"sifarnik","index":0,"n_rows":235,"n_cols":15,"rows_kept":235,"cut":false,"hidden":true,"merged":[]}
[null,null,null,1,"Приходи из буџета",null,null,null,null,null,null,null,null,1,"Органи и службе јединице локалне самоуправе"]
[null,null,null,"01","Приходи из буџета",null,null,null,null,null,null,null,null,2,"Предшколске установе "]
["januar",1,null,4,"Сопствени приходи буџетских корисника",null,null,null,null,null,null,null,null,3,"Установе културе"]
["februar",{"$f":"+B3+1","v":2},null,"04","Сопствени приходи буџетских корисника",null,null,null,null,null,null,null,null,4,"Остале установе из области јавних служби"]
["mart",3,null,"05-08","Донације и трансфери",null,null,null,null,null,null,null,null,5,"Јавна предузећа, дирекције и фондови основани од стране лок. власти који се финансирају из јавних прихода чија је намена утврђена посебним законом"]
["april",4,null,"09-12","Примања од продаје финансијске и нефинансијске имовине и задуживања",null,null,null,null,null,null,null,null,6,"Остали индиректни корисници буџета"]
["maj",5,null,"13-15","Нераспоређени вишак прихода и неутрошена средства из ранијих година",null,null,null,null,null,null,null,null,7,"Запослени који су примљени у радни однос због ступања на снагу закона којима су утврђене нове надлежности јединица локалне самоуправе "]
["jun",6]
["jul",7]
["avgust",8]
["septembar",9]
["oktobar",10]
["novembar",11]
["decembar",12]
["јануар_01",1]
["фебруар_02",{"$f":"+B15+1","v":2}]
["март_03",3]
["април_04",4]
["мај_05",5]
["јун_06",6]
["јул_07",7]
["август_08",8]
["септембар_09",9]
["октобар_10",10]
["новембар_11",11]
["децембар_12",12]
[]
[]
[]
[]
[]
[]
[]
[]
[]
[]
[]
[]
[]
[1,"Александровац",{"$f":"VALUE(A40)","v":1},1,"001"]
[2,"Алексинац",2,2,"002",null,null,"Извор 01",null,"01","Приходи из буџета"]
[3,"Аранђеловац",3,3,"003",null,null,"Извор 04",null,"04","Сопствени приходи буџетских корисника"]
[4,"Ариље",4,4,"004",null,null,"Извор 05-08",null,"05-08","Донације и трансфери"]
[6,"Бабушница",6,6,"006",null,null,"Извор 09-12",null,"09-12","Примања од продаје финансијске и нефинансијске имовине и задуживања"]
[7,"Бајина Башта",7,7,"007",null,null,"Извор 12-15",null,"13-15","Нераспоређени вишак прихода и неутрошена средства из ранијих година"]
[8,"Баточина",8,8,"008"]
[9,"Бела Паланка",9,9,"009"]
[23,"Блаце",23,23,"023"]
[24,"Богатић",24,24,"024",null,null,null,null,"Одлуком о буџету за 2013. годину"]
[25,"Бојник",25,25,"025",null,null,null,null,"Одлуком о привременом финансирању "]
[26,"Бољевац",26,26,"026"]
[27,"Бор",27,27,"027"]
[28,"Босилеград",28,28,"028",null,null,null,null,"Први део плате",null,null,"Први део плате"]
[29,"Брус",29,29,"029",null,null,null,null,"Други део претходни месец    Први део текући месец",null,null,"Други део претходни месец    Први део текући месец"]
[30,"Бујановац",30,30,"030",null,null,null,null,"Коначна исплата",null,null,"Коначна исплата"]
[31,"Црна Трава",31,31,"031"]
[32,"Ћићевац",32,32,"032"]
[33,"Ћуприја",33,33,"033"]
[34,"Чачак",34,34,"034"]
[35,"Чајетина",35,35,"035"]
[36,"Деспотовац",36,36,"036"]
[37,"Димитровград",37,37,"037"]
[38,"Дољевац",38,38,"038"]
[39,"Гаџин Хан",39,39,"039"]
[40,"Голубац",40,40,"040"]
[41,"Горњи Милановац",41,41,"041"]
[42,"Ивањица",42,42,"042"]
[43,"Кладово",43,43,"043"]
[44,"Кнић",44,44,"044"]
[45,"Књажевац",45,45,"045"]
[46,"Коцељева",46,46,"046"]
[48,"Косјерић",{"$f":"VALUE(A72)","v":48},48,"048"]
[50,"Краљево",50,50,"050"]
[51,"Крупањ",51,51,"051"]
[52,"Крушевац",52,52,"052"]
[53,"Кучево",53,53,"053"]
[54,"Куршумлија",54,54,"054"]
[55,"Лајковац",55,55,"055"]
[57,"Лебане",57,57,"057"]
[58,"Лесковац",58,58,"058"]
[59,"Лозница",59,59,"059"]
[59,"Лозница",59,59,"059"]
[60,"Лучани",60,60,"060"]
[61,"Љиг",61,61,"061"]
[62,"Љубовија",62,62,"062"]
[63,"Мајданпек",63,63,"063"]
[65,"Мали Зворник",65,65,"065"]
[66,"Мало Црниће",66,66,"066"]
[67,"Медвеђа",67,67,"067"]
[68,"Мерошина",68,68,"068"]
[69,"Мионица",69,69,"069"]
[72,"Неготин",72,72,"072"]
[74,"Нова Варош",74,74,"074"]
[75,"Нови Пазар",75,75,"075"]
[76,"Осечина",76,76,"076"]
[77,"Параћин",77,77,"077"]
[78,"Петровац на Млави",78,78,"078"]
[79,"Пирот",79,79,"079"]
[80,"Пожаревац",80,80,"080"]
[81,"Пожега",81,81,"081"]
[82,"Прешево",82,82,"082"]
[83,"Прибој",83,83,"083"]
[84,"Пријепоље",84,84,"084"]
[85,"Прокупље",{"$f":"VALUE(A104)","v":85},85,"085"]
[86,"Рача",86,86,"086"]
[87,"Рашка",87,87,"087"]
[88,"Ражањ",88,88,"088"]
[89,"Рековац",89,89,"089"]
[91,"Сјеница",91,91,"091"]
[92,"Смедерево",92,92,"092"]
[93,"Смедеревска Паланка",93,93,"093"]
[94,"Сокобања",94,94,"094"]
[95,"Сурдулица",95,95,"095"]
[96,"Јагодина",96,96,"096"]
[97,"Свилајнац",97,97,"097"]
[98,"Сврљиг",98,98,"098"]
[99,"Шабац",99,99,"099"]
[100,"Ужице",100,100,"100"]
[101,"Топола",101,101,"101"]
[102,"Трговиште",102,102,"102"]
[103,"Трстеник",103,103,"103"]
[104,"Тутин",104,104,"104"]
[105,"Уб",105,105,"105"]
[107,"Ваљево",107,107,"107"]
[108,"Варварин",108,108,"108"]
[109,"Велика Плана",109,109,"109"]
[110,"Велико Градиште",110,110,"110"]
[111,"Владичин Хан",111,111,"111"]
[112,"Владимирци",112,112,"112"]
[113,"Власотинце",113,113,"113"]
[114,"Врање",114,114,"114"]
[115,"Врњачка Бања",115,115,"115"]
[116,"Зајечар",116,116,"116"]
[117,"Жабари",117,117,"117"]
[118,"Жагубица",118,118,"118"]
[119,"Житорађа",{"$f":"VALUE(A136)","v":119},119,"119"]
[121,"Лапово",121,121,"121"]
[201,"Ада",201,201,"201"]
[202,"Алибунар",202,202,"202"]
[203,"Апатин",203,203,"203"]
[204,"Бач",204,204,"204"]
[205,"Бачка Паланка",205,205,"205"]
[206,"Бачка Топола",206,206,"206"]
[207,"Бачки Петровац",207,207,"207"]
[208,"Бечеј",208,208,"208"]
[209,"Бела Црква",209,209,"209"]
[210,"Беочин",210,210,"210"]
[211,"Чока",211,211,"211"]
[212,"Инђија",212,212,"212"]
[213,"Ириг",213,213,"213"]
[214,"Кањижа",214,214,"214"]
[215,"Кикинда",215,215,"215"]
[216,"Ковачица",216,216,"216"]
[217,"Ковин",217,217,"217"]
[218,"Кула",218,218,"218"]
[219,"Мали Иђош",219,219,"219"]
[220,"Нова Црња",220,220,"220"]
[221,"Нови Бечеј",221,221,"221"]
[222,"Нови Кнежевац",222,222,"222"]
[224,"Оџаци",224,224,"224"]
[225,"Опово",225,225,"225"]
[226,"Панчево",226,226,"226"]
[227,"Пећинци",227,227,"227"]
[228,"Пландиште",228,228,"228"]
[229,"Рума",229,229,"229"]
[230,"Сечањ",230,230,"230"]
[231,"Сента",231,231,"231"]
[232,"Сомбор",{"$f":"VALUE(A168)","v":232},232,"232"]
[233,"Србобран",233,233,"233"]
[234,"Сремска Митровица",234,234,"234"]
[235,"Стара Пазова",235,235,"235"]
[236,"Суботица",236,236,"236"]
[237,"Шид",237,237,"237"]
[238,"Темерин",238,238,"238"]
[239,"Тител",239,239,"239"]
[240,"Врбас",240,240,"240"]
[241,"Вршац",241,241,"241"]
[242,"Зрењанин",242,242,"242"]
[243,"Жабаљ",243,243,"243"]
[244,"Житиште",244,244,"244"]
[250,"Сремски Карловци",250,250,"250"]
[310,"Косовска Митровица",310,310,310]
[311,"Лепосавић",311,311,311]
[324,"Зубин Поток",324,324,324]
[326,"Штрпце",326,326,326]
[330,"Звечан",330,330,330]
[501,"Београд",501,501,"501"]
[511,"Нови Сад",511,511,"511"]
[521,"Ниш",521,521,"521"]
[531,"Крагујевац",531,531,"531"]
[581,"АП Војводина",581,581,"581"]
[]
[]
[]
[]
[]
[]
[]
[]
["јануар_01_Први део плате"]
["јануар_01_Други део плате"]
["јануар_01_Коначна исплата"]
["фебруар_02_Први део плате"]
["фебруар_02_Други део плате"]
["фебруар_02_Коначна исплата"]
["март_03_Први део плате"]
["март_03_Други део плате"]
["март_03_Коначна исплата"]
["април_04_Први део плате"]
["април_04_Други део плате"]
["април_04_Коначна исплата"]
["мај_05_Први део плате"]
["мај_05_Други део плате"]
["мај_05_Коначна исплата"]
["јун_06_Први део плате"]
["јун_06_Други део плате"]
["јун_06_Коначна исплата"]
["јул_07_Први део плате"]
["јул_07_Други део плате"]
["јул_07_Коначна исплата"]
["август_08_Први део плате"]
["август_08_Други део плате"]
["август_08_Коначна исплата"]
["септембар_09_Први део плате"]
["септембар_09_Други део плате"]
["септембар_09_Коначна исплата"]
["октобар_10_Први део плате"]
["октобар_10_Други део плате"]
["октобар_10_Коначна исплата"]
["новембар_11_Први део плате"]
["новембар_11_Други део плате"]
["новембар_11_Коначна исплата"]
["децембар_12_Први део плате"]
["децембар_12_Други део плате"]
["децембар_12_Коначна исплата"]

{"sheet":"Списак капиталних пројеката","index":1,"n_rows":35,"n_cols":14,"rows_kept":35,"cut":false,"hidden":false,"merged":[[34,9,34,11],[2,0,2,2],[0,0,0,13],[1,0,1,13],[3,2,3,8]]}
["Прилог  2"]
["Капитални пројекти у периоду 2016 - 2018. године"]
["Шифра СДК:"]
[null,null,{"$f":"IF(ISNA(+VLOOKUP(VALUE($A$4),sifarnik!$A$40:$B$196,2,FALSE))=TRUE,\"\",VLOOKUP(VALUE($A$4),sifarnik!$A$40:$B$196,2,FALSE))","v":""},null,null,null,null,null,null,null,null,null,null,0]
[]
[null,null,null,null,null,null,{"$f":"+SUM($G$11:$G$1168)","v":0},{"$f":"+SUM($H$11:$H$1168)","v":0},{"$f":"+SUM($I$11:$I$1168)","v":0},{"$f":"+SUM($J$11:$J$1168)","v":0},{"$f":"+SUM($K$11:$K$1168)","v":0},{"$f":"+SUM($L$11:$L$1168)","v":0},{"$f":"+SUM($L$11:$L$1168)","v":0},{"$f":"+SUM($N$11:$N$1168)","v":0}]
[]
[null,null,null,null,null,null,null,null,"                у дин (заокружено на 000)"]
["Приоритет",null,"Назив капиталног пројекта",null,"Година почетка финансирања пројекта","Година завршетка финансирања пројекта","Укупна вредност пројекта","Реализовано закључно са 31.12.2013. године","  2014","2015","2016"," 2017","2018","Након   2018"]
["1",null,"2",null,"3","4","5","6","7","9","10","11","12","13"]
[1,{"$f":"CONCATENATE($A$4,RIGHT(CONCATENATE(\"0\",$A11),2))","v":"01"},null,{"$f":"+VALUE(B11)","v":1}]
[{"$f":"A11+1","v":2},"02",null,2]
[3,"03",null,3]
[4,"04",null,4]
[5,"05",null,5]
[6,"06",null,6]
[7,"07",null,7]
[8,"08",null,8]
[9,"09",null,9]
[10,"10",null,10]
[11,"11",null,11]
[12,"12",null,12]
[13,"13",null,13]
[14,"14",null,14]
[15,"15",null,15]
[16,"16",null,16]
[17,"17",null,17]
[18,"18",null,18]
[19,"19",null,19]
[20,"20",null,20]
[]
[]
[]
[]
[null,null,"Место, Датум",null,null,null,null,"M.П.",null,"Потпис одговорног лица"]

{"sheet":"списак","index":2,"n_rows":67,"n_cols":15,"rows_kept":67,"cut":false,"hidden":false,"merged":[[0,0,0,14],[1,0,1,14],[2,0,2,3],[3,2,3,8]]}
["                                                                                                                                                                                                                Прилог 2"]
["                                                Преглед капиталних пројеката у периоду 2017-2019.године"]
["Шифра JЛС:"]
[66,null,"Мало Црниће"]
[]
[null,null,null,null,null,null,null,null,null,{"$f":"SUM(J11:J62)","v":0},{"$f":"SUM(K10:K61)","v":71680000},{"$f":"SUM(L11:L62)","v":107673840},{"$f":"SUM(M11:M62)","v":92200000},{"$f":"SUM(N11:N62)","v":92200000},{"$f":"SUM(O11:O62)","v":92200000}]
[{"$f":"27*'Списак капиталних пројеката'!A8","v":0},null,null,null,null,null,null,null,null,"                у дин (заокружено на 000)"]
["Приоритет",null,null,"Назив капиталног пројекта","Година почетка финансирања пројекта","Година завршетка финансирања пројекта","Укупна вредност пројекта","Уговорени рок завршетка      (месец-година)","Реализовано закључно са 31.12.2015.године","2016-план","2016-процена извршења","2017","2018","2019","Након   2019"]
[1,null,null,"2","3","4","5","6","7","8","9","10","11","12","13"]
[null,null,null,"namena","k-3","k-4","Opis k-3","Izvor","Opis k-4","budžet 2010","2011"]
[1,{"$f":"VLOOKUP(D11,'Списак капиталних пројеката'!$C$11:$D$30,2,FALSE)","v":{"$error":"#N/A"}},{"$f":"CONCATENATE(B11,RIGHT(CONCATENATE(\"0\",A11),2))","v":{"$error":"#N/A"}},"Завршетак изградње дома културе у Аљудову 3 фаза",null,null,null,null,null,null,1000000,1000000,1000000,1000000,1000000]
[2,{"$f":"VLOOKUP(D12,'Списак капиталних пројеката'!$C$11:$D$30,2,FALSE)","v":{"$error":"#N/A"}},{"$error":"#N/A"},"Реконструкција дома културе у Батуши 2 фаза",null,null,null,null,0,null,500000,1000000,1000000,1000000,1000000]
[3,{"$f":"VLOOKUP(D13,'Списак капиталних пројеката'!$C$11:$D$30,2,FALSE)","v":{"$error":"#N/A"}},{"$error":"#N/A"},"адаптација и санација дома културе у Божевцу 3фаза ",null,null,null,null,null,null,3500000,2500000,2500000,2500000,2500000]
[4,{"$f":"VLOOKUP(D14,'Списак капиталних пројеката'!$C$11:$D$30,2,FALSE)","v":{"$error":"#N/A"}},{"$error":"#N/A"},"Реконструкција дома културе у Великом Селу",null,null,null,null,null,null,500000,700000,700000,700000,700000]
[5,{"$f":"VLOOKUP(D15,'Списак капиталних пројеката'!$C$11:$D$30,2,FALSE)","v":{"$error":"#N/A"}},{"$error":"#N/A"},"Реконструкција Дома културе у Великом Црнићу 3 фаза",null,null,null,null,0,null,1000000,500000,500000,500000,500000]
[6,{"$f":"VLOOKUP(D16,'Списак капиталних пројеката'!$C$11:$D$30,2,FALSE)","v":{"$error":"#N/A"}},{"$error":"#N/A"},"Реконструкција дома културе у Врбници",null,null,null,null,0,null,500000,500000,500000,500000,500000]
[7,{"$f":"VLOOKUP(D17,'Списак капиталних пројеката'!$C$11:$D$30,2,FALSE)","v":{"$error":"#N/A"}},{"$error":"#N/A"},"Реконструкција дома културе у Забрези 3 фаза",null,null,null,null,null,null,500000,1000000,1000000,1000000,1000000]
[8,{"$f":"VLOOKUP(D18,'Списак капиталних пројеката'!$C$11:$D$30,2,FALSE)","v":{"$error":"#N/A"}},{"$error":"#N/A"},"Завршетак реконструкције дома културе у Калишту",null,null,null,null,0,null,500000,500000,500000,500000,500000]
[9,{"$f":"VLOOKUP(D19,'Списак капиталних пројеката'!$C$11:$D$30,2,FALSE)","v":{"$error":"#N/A"}},{"$error":"#N/A"},"Реконструкција домакултуре у Кобиљу",null,null,null,null,null,null,500000,1000000,1000000,1000000,1000000]
[10,null,null,"Завршетак радова на уређењу центра насеља у Кобиљу",null,null,null,null,null,null,2500000,500000,500000,500000,500000]
[11,null,null,"Реконструкција дома културе у Малом Градишту-завршни радови",null,null,null,null,null,null,500000,500000,500000,500000,500000]
[12,null,null,"Реконструкција дома културе у Смољинцу",null,null,null,null,null,null,4000000,3000000,3000000,3000000,3000000]
[13,null,null,"Инвестиционо одржавање дома културе у Топоници",null,null,null,null,null,null,1500000,1000000,1000000,1000000,1000000]
[14,null,null,"Завршетак изградње сале у Црљенцу и прикључакна нн мрежу",null,null,null,null,null,null,3500000,2000000,2000000,2000000,2000000]
[15,null,null,"Завршетак дома културе у Шапину",null,null,null,null,null,null,1000000,1000000,1000000,1000000,1000000]
[16,{"$f":"VLOOKUP(D26,'Списак капиталних пројеката'!$C$11:$D$30,2,FALSE)","v":{"$error":"#N/A"}},{"$f":"CONCATENATE(B26,RIGHT(CONCATENATE(\"0\",A26),2))","v":{"$error":"#N/A"}},"Асфалтирање улицеу Аљудову",null,null,null,null,null,null,500000,900000,900000,900000,900000]
[17,{"$f":"VLOOKUP(D27,'Списак капиталних пројеката'!$C$11:$D$30,2,FALSE)","v":{"$error":"#N/A"}},{"$error":"#N/A"},"Асфалтирање улица у Батуши",null,null,null,null,null,null,1500000,3000000,3000000,3000000,3000000]
[18,{"$f":"VLOOKUP(D28,'Списак капиталних пројеката'!$C$11:$D$30,2,FALSE)","v":{"$error":"#N/A"}},{"$error":"#N/A"},"Асфалтирање улица у Божевцу: Арсенија Чарниојевића,Бате Цекића,Доситеја Обрадоића,Станоја Главаша,Кнеза Милоша",null,null,null,null,null,null,4000000,4700000,4700000,4700000,4700000]
[19,{"$f":"VLOOKUP(D29,'Списак капиталних пројеката'!$C$11:$D$30,2,FALSE)","v":{"$error":"#N/A"}},{"$error":"#N/A"},"Асфалтирање улица у Великом Селу:Вељка Дугошевића,ПавлаЂорђевића ",null,null,null,null,null,null,2000000,2000000,2000000,2000000,2000000]
[20,{"$f":"VLOOKUP(D30,'Списак капиталних пројеката'!$C$11:$D$30,2,FALSE)","v":{"$error":"#N/A"}},{"$error":"#N/A"},"Асфалтирање улице у Великом Црнићу",null,null,null,null,null,null,3000000,3000000,3000000,3000000,3000000]
[21,{"$f":"VLOOKUP(D31,'Списак капиталних пројеката'!$C$11:$D$30,2,FALSE)","v":{"$error":"#N/A"}},{"$error":"#N/A"},"Асфалтирање улицеу Врбници",null,null,null,null,0,null,1000000,2400000,2400000,2400000,2400000]
[22,{"$f":"VLOOKUP(D32,'Списак капиталних пројеката'!$C$11:$D$30,2,FALSE)","v":{"$error":"#N/A"}},{"$error":"#N/A"},"Наставаки зградње пута Забрега-Божевац",null,null,null,null,0,null,1000000,800000,800000,800000,800000]
[23,null,null,"Асфалтирање улице  у насељу Калиште",null,null,null,null,null,null,1000000,2000000,2000000,2000000,2000000]
[24,null,null,"Асфалтирање улицау Кобиљу (Првомајска, Бате Булића,ВељкаДугошевића,ЕдвардаКардељаиПролетерске)",null,null,null,null,null,null,2500000,3600000,3600000,3600000,3600000]
[25,null,null,"Асфалтирање улице у Крављем Долу,кп бр 509",null,null,null,null,null,null,1000000,1200000,1200000,1200000,1200000]
[26,null,null,"Асфалтирање улице у Кули",null,null,null,null,null,null,2500000,2000000,2000000,2000000,2000000]
[27,null,null,"Асфалтирање улицеу Малом Градишту",null,null,null,null,null,null,1500000,1500000,1500000,1500000,1500000]
[28,null,null,"Асфалтирање улице у Малом Црнићу",null,null,null,null,null,null,1500000,3000000,3000000,3000000,3000000]
[29,null,null,"Асфалтирање улицау Салаковцу",null,null,null,null,null,null,1500000,4000000,4000000,4000000,4000000]
[30,null,null,"Асфалтирање улица у Смољинцу:Хајдук Вељкова, Војводе Миленка",null,null,null,null,null,null,2000000,3000000,3000000,3000000,3000000]
[31,null,null,"Асфалтирање улица у Топоници-доњи Буљедреж",null,null,null,null,null,null,3000000,3000000,3000000,3000000,3000000]
[32,null,null,"Асфалтирање улица у Црљенцу: Фрање Динића, Железничкаикп бр720и Радетза Врадарца",null,null,null,null,null,null,4500000,3000000,3000000,3000000,3000000]
[33,null,null,"Асфалтирање улица у Шапину",null,null,null,null,null,null,2500000,2500000,2500000,2500000,2500000]
[34,null,null,"Асфалтирање улицау Шљивовцу",null,null,null,null,null,null,500000,2500000,2500000,2500000,2500000]
[35,null,null,"Реконструкција и уређење чесме испред дома културе у Крављем Долу",null,null,null,null,null,null,500000,300000,300000,300000,300000]
[36,null,null,"Реконструкција нн мреже у Смољинцу",null,null,null,null,null,null,null,3000000,3000000,3000000,3000000]
[37,null,null,"Изградња секундарне водоводне мреже у Кули",null,null,null,null,null,null,1500000,6000000,6000000,6000000,6000000]
[38,null,null,"Изградња система за  пречишћавање воде на изворишту Мало Црнићу",null,null,null,null,null,null,3000000,6000000,6000000,6000000,6000000]
[39,null,null,"Изградња бунара за водоснабдевање у Топоници",null,null,null,null,null,null,5000000,5000000,5000000,5000000,5000000]
[40,null,null,"Пројектна документација и надзор за путеве",null,null,null,null,null,null,1000000,2900000,2900000,2900000,2900000]
[41,null,null,"Пројектна документација и надзор за домове култура",null,null,null,null,null,null,1400000,1000000,1000000,1000000,1000000]
[42,null,null,"Пројектна документација и надзор за изградњу система за водоснабдевање",null,null,null,null,null,null,200000,2000000,2000000,2000000,2000000]
[43,null,null,"Пројектна документација за управљање отпадним водама",null,null,null,null,null,null,200000,200000,200000,200000,200000]
[44,null,null,"Опрема за основне школе",null,null,null,null,null,null,380000,650000,1000000,1000000,1000000]
[45,null,null,"Реконсткрукција крова зграде општинске управе",null,null,null,null,null,null,null,3615840]
[46,null,null,"Реконструкција велике сале Федраса",null,null,null,null,null,null,null,1500000]
[47,null,null,"Реконструкција зграде архиве",null,null,null,null,null,null,null,1500000]
[48,null,null,"Реконструкција објекта летње позорнице",null,null,null,null,null,null,null,1050000]
[49,null,null,"Санација школе у Смољинцу",null,null,null,null,null,null,null,1390000]
[50,null,null,"Санација објекта школе у Малом Црнићу",null,null,null,null,null,null,null,4000000]
[51,null,null,"Замена кровне конструкције на објекту школе у В. Селу",null,null,null,null,null,null,null,568000]
[52,null,null,"Замена столарије и фасаде на објекту школе у Црљенцу",null,null,null,null,null,null,null,2200000]
[]
[]
[]
[null,null,null,"_________________________________________________",null,null,null,null,null,null,null,"________________________________________"]
[null,null,null,"Место, Датум",null,null,"М.П.",null,null,null,null,"Потпис одговорног лица"]

{"sheet":"по изворима и контима ","index":3,"n_rows":66,"n_cols":23,"rows_kept":66,"cut":false,"hidden":false,"merged":[[0,0,0,23],[1,0,1,23],[2,0,2,3],[3,2,3,11]]}
["                                                                   Прилог  2a"]
["                                                Преглед  капиталних пројеката  у периоду 2017 - 2019. године"]
["Шифра ЈЛС:"]
[66,null,"Мало Црниће"]
[null,null,null,null,null,null,null,null,null,null,null,{"$f":"SUM(L10:L61)","v":71680000},{"$f":"SUM(M10:M61)","v":107673840},{"$f":"SUM(N10:N61)","v":92200000},{"$f":"SUM(O10:O61)","v":92200000},{"$f":"SUM(P10:P61)","v":92200000}]
[{"$f":"27*'Списак капиталних пројеката'!A8","v":0},null,null,null,null,null,null,null,null,null,null,null,"                у дин (заокружено на 000)"]
["Р.бр.",null,null,"Назив капиталног пројекта","Шифра програма","Шифра програмске активности/пројекта","Конто 3. ниво","Конто 4.ниво","Извор","Реализовано закључно са 31.12.2015. године","2016-план","2016-процена реализације","2017","2018","2019","након 2019","Грађевинска дозвола (датум издавања)","Уговор (датум правоснажности)","Уговорена вредност по основном уговору ( у дин.)","Додатно уговорена вредност (у дин.)","Рок реализације по основном уговору (датум)","Продужење рока реалзације (датум)","Напомена"]
[1,null,null,"2","3","4","5","6","7","8","9","10","11","12","13","14","15","16","17","18","19","20","21"]
[null,null,null,"namena",null,null,"k-3",null,"k-4","Opis k-3","Izvor","Opis k-4","budžet 2010","2011"]
[1,{"$f":"VLOOKUP(D10,'Списак капиталних пројеката'!$C$11:$D$30,2,FALSE)","v":{"$error":"#N/A"}},{"$f":"CONCATENATE(B10,RIGHT(CONCATENATE(\"0\",A10),2))","v":{"$error":"#N/A"}},"Завршетак изградње дома културе у Аљудову 3 фаза",1101,"1101-0001",511,5112,1,null,1000000,1000000,1000000,1000000,1000000,1000000]
[2,{"$f":"VLOOKUP(D11,'Списак капиталних пројеката'!$C$11:$D$30,2,FALSE)","v":{"$error":"#N/A"}},{"$error":"#N/A"},"Реконструкција дома културе у Батуши 2 фаза",1101,"1101-0001",511,5112,1,null,500000,500000,1000000,1000000,1000000,1000000]
[3,{"$f":"VLOOKUP(D12,'Списак капиталних пројеката'!$C$11:$D$30,2,FALSE)","v":{"$error":"#N/A"}},{"$error":"#N/A"},"адаптација и санација дома културе у Божевцу 3 фаза ",1101,"1101-0001",511,5112,1,null,3500000,3500000,2500000,2500000,2500000,2500000]
[4,{"$f":"VLOOKUP(D13,'Списак капиталних пројеката'!$C$11:$D$30,2,FALSE)","v":{"$error":"#N/A"}},{"$error":"#N/A"},"Реконструкција дома културе у Великом Селу",1101,"1101-0001",511,5112,1,null,500000,500000,700000,700000,700000,700000]
[5,{"$f":"VLOOKUP(D14,'Списак капиталних пројеката'!$C$11:$D$30,2,FALSE)","v":{"$error":"#N/A"}},{"$error":"#N/A"},"Реконструкција Дома културе у Великом Црнићу 3 фаза",1101,"1101-0001",511,5112,1,null,1000000,1000000,500000,500000,500000,500000]
[6,{"$f":"VLOOKUP(D15,'Списак капиталних пројеката'!$C$11:$D$30,2,FALSE)","v":{"$error":"#N/A"}},{"$error":"#N/A"},"Реконструкција дома културе у Врбници",1101,"1101-0001",511,5112,1,null,500000,500000,500000,500000,500000,500000]
[7,{"$f":"VLOOKUP(D16,'Списак капиталних пројеката'!$C$11:$D$30,2,FALSE)","v":{"$error":"#N/A"}},{"$error":"#N/A"},"Реконструкција дома културе у Забрези 3 фаза",1101,"1101-0001",511,5112,1,null,500000,500000,1000000,1000000,1000000,1000000]
[8,{"$f":"VLOOKUP(D17,'Списак капиталних пројеката'!$C$11:$D$30,2,FALSE)","v":{"$error":"#N/A"}},{"$error":"#N/A"},"Завршетак реконструкције дома културе у Калишту",1101,"1101-0001",511,5112,1,null,500000,500000,500000,500000,500000,500000]
[9,{"$f":"VLOOKUP(D18,'Списак капиталних пројеката'!$C$11:$D$30,2,FALSE)","v":{"$error":"#N/A"}},{"$error":"#N/A"},"Реконструкција домакултуре у Кобиљу",1101,"1101-0001",511,5112,1,null,500000,500000,1000000,1000000,1000000,1000000]
[10,{"$f":"VLOOKUP(D19,'Списак капиталних пројеката'!$C$11:$D$30,2,FALSE)","v":{"$error":"#N/A"}},{"$error":"#N/A"},"Завршетак радова на уређењу центра насеља у Кобиљу",1101,"1101-0001",511,5112,1,null,2500000,2500000,500000,500000,500000,500000]
[11,{"$f":"VLOOKUP(D20,'Списак капиталних пројеката'!$C$11:$D$30,2,FALSE)","v":{"$error":"#N/A"}},{"$error":"#N/A"},"Реконструкција дома културе у Малом Градишту-завршни радови",1101,"1101-0001",511,5112,1,null,500000,500000,500000,500000,500000,500000]
[12,{"$f":"VLOOKUP(D21,'Списак капиталних пројеката'!$C$11:$D$30,2,FALSE)","v":{"$error":"#N/A"}},{"$error":"#N/A"},"Реконструкција дома културе у Смољинцу",1101,"1101-0001",511,5112,1,null,4000000,4000000,3000000,3000000,3000000,3000000]
[13,{"$f":"VLOOKUP(D22,'Списак капиталних пројеката'!$C$11:$D$30,2,FALSE)","v":{"$error":"#N/A"}},{"$error":"#N/A"},"Инвестиционо одржавање дома културе у Топоници",1101,"1101-0001",511,5112,1,null,1500000,1500000,1000000,1000000,1000000,1000000]
[14,{"$f":"VLOOKUP(D23,'Списак капиталних пројеката'!$C$11:$D$30,2,FALSE)","v":{"$error":"#N/A"}},{"$error":"#N/A"},"Завршетак изградње сале у Црљенцу и прикључакна нн мрежу",1101,"1101-0001",511,5112,1,null,3500000,3500000,2000000,2000000,2000000,2000000]
[15,{"$f":"VLOOKUP(D24,'Списак капиталних пројеката'!$C$11:$D$30,2,FALSE)","v":{"$error":"#N/A"}},{"$error":"#N/A"},"Завршетак дома културе у Шапину",1101,"1101-0001",511,5112,1,null,1000000,1000000,1000000,1000000,1000000,1000000]
[16,{"$f":"VLOOKUP(D25,'Списак капиталних пројеката'!$C$11:$D$30,2,FALSE)","v":{"$error":"#N/A"}},{"$error":"#N/A"},"Асфалтирање улицеу Аљудову","0 701","0701-0002",511,5112,1,null,500000,500000,900000,900000,900000,900000]
[17,{"$f":"VLOOKUP(D26,'Списак капиталних пројеката'!$C$11:$D$30,2,FALSE)","v":{"$error":"#N/A"}},{"$error":"#N/A"},"Асфалтирање улица у Батуши","0 701","0701-0002",511,5112,1,null,1500000,1500000,3000000,3000000,3000000,3000000]
[18,{"$f":"VLOOKUP(D27,'Списак капиталних пројеката'!$C$11:$D$30,2,FALSE)","v":{"$error":"#N/A"}},{"$error":"#N/A"},"Асфалтирање улица у Божевцу: Арсенија Чарниојевића,Бате Цекића,Доситеја Обрадоића,Станоја Главаша,Кнеза Милоша","0 701","0701-0002",511,5112,1,null,null,4000000,4700000,4700000,4700000,4700000]
[19,{"$f":"VLOOKUP(D28,'Списак капиталних пројеката'!$C$11:$D$30,2,FALSE)","v":{"$error":"#N/A"}},{"$error":"#N/A"},"Асфалтирање улица у Великом Селу:Вељка Дугошевића,ПавлаЂорђевића ","0 701","0701-0002",511,5112,1,null,null,2000000,2000000,2000000,2000000,2000000]
[20,{"$f":"VLOOKUP(D29,'Списак капиталних пројеката'!$C$11:$D$30,2,FALSE)","v":{"$error":"#N/A"}},{"$error":"#N/A"},"Асфалтирање улице у Великом Црнићу","0 701","0701-0002",511,5112,1,null,null,3000000,3000000,3000000,3000000,3000000]
[21,null,null,"Асфалтирање улице у Врбници","0 701","0701-0002",511,5112,1,null,null,1000000,2400000,2400000,2400000,2400000]
[22,null,null,"Наставаки зградње пута Забрега-Божевац","0 701","0701-0002",511,5112,1,null,null,1000000,800000,800000,800000,800000]
[23,null,null,"Асфалтирање улице  у насељу Калиште","0 701","0701-0002",511,5112,1,null,null,1000000,2000000,2000000,2000000,2000000]
[24,null,null,"Асфалтирање улицау Кобиљу (Првомајска, Бате Булића,ВељкаДугошевића,ЕдвардаКардељаиПролетерске)","0 701","0701-0002",511,5112,1,null,null,2500000,3600000,3600000,3600000,3600000]
[25,null,null,"Асфалтирање улице у Крављем Долу,кп бр 509","0 701","0701-0002",511,5112,1,null,null,1000000,1200000,1200000,1200000,1200000]
[26,null,null,"Асфалтирање улице у Кули","0 701","0701-0002",511,5112,1,null,null,2500000,2000000,2000000,2000000,2000000]
[27,null,null,"Асфалтирање улицеу Малом Градишту","0 701","0701-0002",511,5112,1,null,null,1500000,1500000,1500000,1500000,1500000]
[28,null,null,"Асфалтирање улице у Малом Црнићу","0 701","0701-0002",511,5112,1,null,null,1500000,3000000,3000000,3000000,3000000]
[29,null,null,"Асфалтирање улицау Салаковцу","0 701","0701-0002",511,5112,1,null,null,1500000,4000000,4000000,4000000,4000000]
[30,null,null,"Асфалтирање улица у Смољинцу:Хајдук Вељкова, Војводе Миленка","0 701","0701-0002",511,5112,1,null,null,2000000,3000000,3000000,3000000,3000000]
[31,null,null,"Асфалтирање улица у Топоници-доњи Буљедреж","0 701","0701-0002",511,5112,1,null,null,3000000,3000000,3000000,3000000,3000000]
[32,null,null,"Асфалтирање улица у Црљенцу: Фрање Динића, Железничкаикп бр720и Радетза Врадарца","0 701","0701-0002",511,5112,1,null,null,4500000,3000000,3000000,3000000,3000000]
[33,null,null,"Асфалтирање улица у Шапину","0 701","0701-0002",511,5112,1,null,null,2500000,2500000,2500000,2500000,2500000]
[34,null,null,"Асфалтирање улицау Шљивовцу","0 701","0701-0002",511,5112,1,null,null,500000,2500000,2500000,2500000,2500000]
[35,null,null,"Реконструкција и уређење чесме испред дома културе у Крављем Долу",1101,"1101-0001",511,5112,1,null,null,500000,300000,300000,300000,300000]
[36,null,null,"Реконструкција нн мреже у Смољинцу",1102,"1102-0002",511,5112,1,null,null,null,3000000,3000000,3000000,3000000]
[37,null,null,"Изградња секундарне водоводне мреже у Кули",1102,"1102-0008",511,5112,1,null,null,1500000,6000000,6000000,6000000,6000000]
[38,null,null,"Изградња система за  пречишћавање воде на изворишту Мало Црнићу",1102,"1102-0008",511,5112,1,null,null,3000000,6000000,6000000,6000000,6000000]
[39,null,null,"Изградња бунара за водоснабдевање у Топоници",1102,"1102-0008",511,5112,1,null,null,5000000,5000000,5000000,5000000,5000000]
[40,null,null,"Пројектна документација и надзор за путеве","0 701","0 701-0002",511,5112,1,null,null,1000000,2900000,2900000,2900000,2900000]
[41,null,null,"Пројектна документација и надзор за домове култура",1101,"1101-0001",511,5112,1,null,null,1400000,1000000,1000000,1000000,1000000]
[42,null,null,"Пројектна документација и надзор за изградњу система за водоснабдевање",1102,"1102-0008",511,5114,1,null,null,200000,2000000,2000000,2000000,2000000]
[43,null,null,"Пројектна документација за управљање отпадним водама","0 401","0 401-0004",511,5114,1,null,null,200000,200000,200000,200000,200000]
[44,null,null,"Опрема за основне школе",2002,"2002-0001",511,5112,1,null,null,380000,650000,1000000,1000000,1000000]
[45,null,null,"Реконсткрукција крова зграде општинске управе","0 602","0 602-П1",511,5112,1,null,null,null,3615840]
[46,null,null,"Реконструкција велике сале Федраса","0 602","0 602-П1",511,5112,1,null,null,null,1500000]
[47,null,null,"Реконструкција зграде архиве","0 602","0 602-П2",511,5112,1,null,null,null,1500000]
[48,null,null,"Реконструкција објекта летње позорнице",1201,"1201-П2",511,5112,1,null,null,null,1050000]
[49,null,null,"Санација школе у Смољинцу",2002,"2002-0001",511,5112,1,null,null,null,1390000]
[50,null,null,"Санација објекта школе у Малом Црнићу",2002,"2002-0001",511,5112,1,null,null,null,4000000]
[51,null,null,"Замена кровне конструкције на објекту школе у В. Селу",2002,"2002-0001",511,5112,1,null,null,null,568000]
[52,null,null,"Замена столарије и фасаде на објекту школе у Црљенцу",2002,"2002-0001",511,5112,1,null,null,null,2200000]
[]
[]
[]
[null,null,null,"_________________________________________________",null,null,null,null,null,null,null,null,"____________________________________________________________","_____________________________________________"]
[null,null,null,"Место, Датум",null,null,null,null,null,null,null,null,null,"Потпис одговорног лица"]

{"sheet":"K3","index":4,"n_rows":104,"n_cols":11,"rows_kept":104,"cut":false,"hidden":true,"merged":[]}
[null,"Usklađeno sa oktobrom 2011",null,null,"jun 2010",null,null,null,"oktobar 2011"]
[]
[null,411,"Плате, додаци и накнаде запослених (зараде)",411,"ПЛАТЕ, ДОДАЦИ И НАКНАДЕ ЗАПОСЛЕНИХ (ЗАРАДЕ)",{"$f":"+IF(B3=D3,\"\",1)","v":""},{"$f":"+IF(C3=E3,\"\",1)","v":""},{"$f":"+B3-J3","v":0},{"$f":"+IF(C3=K3,0,111)","v":0},411,"ПЛАТЕ, ДОДАЦИ И НАКНАДЕ ЗАПОСЛЕНИХ (ЗАРАДЕ)"]
[null,412,"Социјални доприноси на терет послодавца",412,"СОЦИЈАЛНИ ДОПРИНОСИ НА ТЕРЕТ ПОСЛОДАВЦА","","",0,0,412,"СОЦИЈАЛНИ ДОПРИНОСИ НА ТЕРЕТ ПОСЛОДАВЦА"]
[null,413,"Накнаде у натури",413,"НАКНАДЕ У НАТУРИ","","",0,0,413,"НАКНАДЕ У НАТУРИ"]
[null,414,"Социјална давања запосленима",414,"СОЦИЈАЛНА ДАВАЊА ЗАПОСЛЕНИМА","","",0,0,414,"СОЦИЈАЛНА ДАВАЊА ЗАПОСЛЕНИМА"]
[null,415,"Накнаде трошкова за запослене",415,"НАКНАДЕ ТРОШКОВА ЗА ЗАПОСЛЕНЕ","","",0,0,415,"НАКНАДЕ ТРОШКОВА ЗА ЗАПОСЛЕНЕ"]
[null,416,"Награде запосленима и остали посебни расходи",416,"НАГРАДЕ ЗАПОСЛЕНИМА И  ОСТАЛИ ПОСЕБНИ РАСХОДИ","",1,0,0,416,"НАГРАДЕ ЗАПОСЛЕНИМА И ОСТАЛИ ПОСЕБНИ РАСХОДИ"]
[null,417,"Посланички додатак",417," ПОСЛАНИЧКИ ДОДАТАК","",1,0,0,417,"ПОСЛАНИЧКИ ДОДАТАК"]
[null,418,"Судијски додатак",418,"СУДИЈСКИ ДОДАТАК","","",0,0,418,"СУДИЈСКИ ДОДАТАК"]
[null,421,"Стални трошкови",421,"СТАЛНИ ТРОШКОВИ","","",0,0,421,"СТАЛНИ ТРОШКОВИ"]
[null,422,"Трошкови путовања",422,"ТРОШКОВИ ПУТОВАЊА","","",0,0,422,"ТРОШКОВИ ПУТОВАЊА"]
[null,423,"Услуге по уговору",423,"УСЛУГЕ ПО УГОВОРУ","","",0,0,423,"УСЛУГЕ ПО УГОВОРУ"]
[null,424,"Специјализоване услуге",424,"СПЕЦИЈАЛИЗОВАНЕ УСЛУГЕ","","",0,0,424,"СПЕЦИЈАЛИЗОВАНЕ УСЛУГЕ"]
[null,425,"Текуће поправке и одржавање",425,"ТЕКУЋЕ ПОПРАВКЕ И ОДРЖАВАЊЕ ","",1,0,0,425,"ТЕКУЋЕ ПОПРАВКЕ И ОДРЖАВАЊЕ"]
[null,426,"Материјал",426,"МАТЕРИЈАЛ","","",0,0,426,"МАТЕРИЈАЛ"]
[null,431,"Амортизација некретнина и опреме",431,"АМОРТИЗАЦИЈА НЕКРЕТНИНА И ОПРЕМЕ","","",0,0,431,"АМОРТИЗАЦИЈА НЕКРЕТНИНА И ОПРЕМЕ"]
[null,432,"Амортизација култивисане имовине",432,"АМОРТИЗАЦИЈА КУЛТИВИСАНЕ ИМОВИНЕ","","",0,0,432,"АМОРТИЗАЦИЈА КУЛТИВИСАНЕ ИМОВИНЕ"]
[null,433,"Употреба драгоцености",433,"УПОТРЕБА  ДРАГОЦЕНОСТИ","",1,0,0,433,"УПОТРЕБА ДРАГОЦЕНОСТИ"]
[null,434,"Употреба природне имовине",434,"УПОТРЕБА ПРИРОДНЕ ИМОВИНЕ","","",0,0,434,"УПОТРЕБА ПРИРОДНЕ ИМОВИНЕ"]
[null,435,"Амортизација нематеријалне имовине",435,"АМОРТИЗАЦИЈА  НЕМАТЕРИЈАЛНЕ ИМОВИНЕ","",1,0,0,435,"АМОРТИЗАЦИЈА НЕМАТЕРИЈАЛНЕ ИМОВИНЕ"]
[null,441,"Отплате домаћих камата",441,"ОТПЛАТА  ДОМАЋИХ КАМАТА ","",1,0,111,441,"ОТПЛАТА ДОМАЋИХ КАМАТА"]
[null,442,"Отплата страних камата",442,"ОТПЛАТА СТРАНИХ КАМАТА","","",0,0,442,"ОТПЛАТА СТРАНИХ КАМАТА"]
[null,443,"Отплата камата по гаранцијама",443,"ОТПЛАТА КАМАТА ПО ГАРАНЦИЈАМА","","",0,0,443,"ОТПЛАТА КАМАТА ПО ГАРАНЦИЈАМА"]
[null,444,"Пратећи трошкови задуживања",444,"ПРАТЕЋИ ТРОШКОВИ ЗАДУЖИВАЊА","","",0,0,444,"ПРАТЕЋИ ТРОШКОВИ ЗАДУЖИВАЊА"]
[null,451,"Субвенције јавним нефинансијским предузећима и организацијама",451,"СУБВЕНЦИЈЕ ЈАВНИМ НЕФИНАНСИЈСКИМ ПРЕДУЗЕЋИМА И ОРГАНИЗАЦИЈАМА","","",0,0,451,"СУБВЕНЦИЈЕ ЈАВНИМ НЕФИНАНСИЈСКИМ ПРЕДУЗЕЋИМА И ОРГАНИЗАЦИЈАМА"]
[null,452,"Субвенције приватним финансијским институцијама",452,"СУБВЕНЦИЈЕ ПРИВАТНИМ ФИНАНСИЈСКИМ ИНСТИТУЦИЈАМА","","",0,0,452,"СУБВЕНЦИЈЕ ПРИВАТНИМ ФИНАНСИЈСКИМ ИНСТИТУЦИЈАМА"]
[null,453,"Субвенције јавним финансијским институцијама",453,"СУБВЕНЦИЈЕ ЈАВНИМ ФИНАНСИЈСКИМ ИНСТИТУЦИЈАМА","","",0,0,453,"СУБВЕНЦИЈЕ ЈАВНИМ ФИНАНСИЈСКИМ ИНСТИТУЦИЈАМА"]
[null,454,"Субвенције приватним предузећима",454,"СУБВЕНЦИЈЕ ПРИВАТНИМ ПРЕДУЗЕЋИМА","","",0,0,454,"СУБВЕНЦИЈЕ ПРИВАТНИМ ПРЕДУЗЕЋИМА"]
[null,461,"Донације страним владама",461,"ДОНАЦИЈЕ СТРАНИМ ВЛАДАМА","","",0,0,461,"ДОНАЦИЈЕ СТРАНИМ ВЛАДАМА"]
[null,462,"Дотације међународним организацијама",462,"ДОТАЦИЈЕ МЕЂУНАРОДНИМ ОРГАНИЗАЦИЈАМА","","",0,0,462,"ДОТАЦИЈЕ МЕЂУНАРОДНИМ ОРГАНИЗАЦИЈАМА"]
[null,463,"Трансфери осталим нивоима власти",463,"ТРАНСФЕРИ ОСТАЛИМ НИВОИМА ВЛАСТИ","","",0,0,463,"ТРАНСФЕРИ ОСТАЛИМ НИВОИМА ВЛАСТИ"]
[null,464,"Дотације организацијама обавезног социјалног осигурања",464,"ДОТАЦИЈЕ  ОРГАНИЗАЦИЈАМА ОБАВЕЗНОГ СОЦИЈАЛНОГ ОСИГУРАЊА","",1,0,0,464,"ДОТАЦИЈЕ ОРГАНИЗАЦИЈАМА ОБАВЕЗНОГ СОЦИЈАЛНОГ ОСИГУРАЊА"]
[null,465,"Остале дотације и трансфери",465,"ОСТАЛЕ ДОТАЦИЈЕ И ТРАНСФЕРИ","","",0,0,465,"ОСТАЛЕ ДОТАЦИЈЕ И ТРАНСФЕРИ"]
[1,471,"Права из социјалног осигурања (Организације обавезног социјалног осигурања)",471,"ПРАВА ИЗ СОЦИЈАЛНОГ ОСИГУРАЊА (ОРГАНИЗАЦИЈЕ ОБАВЕЗНОГ СОЦИЈАЛНОГ ОСИГУРАЊА)",{"$f":"+IF(B35=D35,\"\",1)","v":""},{"$f":"+IF(C35=E35,\"\",1)","v":""},{"$f":"+B35-J35","v":0},{"$f":"+IF(C35=K35,0,111)","v":111},471,"ПРАВА ИЗ СОЦИЈАЛНОГ"]
[null,472,"Накнаде за социјалну заштиту из буџета",472,"НАКНАДЕ ЗА СОЦИЈАЛНУ ЗАШТИТУ ИЗ БУЏЕТА","","",0,0,472,"НАКНАДЕ ЗА СОЦИЈАЛНУ ЗАШТИТУ ИЗ БУЏЕТА"]
[null,481,"Дотације невладиним организацијама",481,"ДОТАЦИЈЕ НЕВЛАДИНИМ ОРГАНИЗАЦИЈАМА","","",0,0,481,"ДОТАЦИЈЕ НЕВЛАДИНИМ ОРГАНИЗАЦИЈАМА"]
[null,482,"Порези, обавезне таксе и казне",482,"ПОРЕЗИ, ОБАВЕЗНЕ ТАКСЕ И КАЗНЕ ","",1,0,0,482,"ПОРЕЗИ, ОБАВЕЗНЕ ТАКСЕ И КАЗНЕ"]
[null,483,"Новчане казне и пенали по решењу судова",483,"НОВЧАНЕ КАЗНЕ И ПЕНАЛИ ПО РЕШЕЊУ СУДОВА ","",1,0,0,483,"НОВЧАНЕ КАЗНЕ И ПЕНАЛИ ПО РЕШЕЊУ СУДОВА"]
[null,484,"Накнада штете за повреде или штету насталу услед елементарних непогода или других природних узрока",484,"НАКНАДА ШТЕТЕ ЗА ПОВРЕДЕ ИЛИ ШТЕТУ НАСТАЛУ УСЛЕД ЕЛЕМЕНТАРНИХ НЕПОГОДА ИЛИ ДРУГИХ ПРИРОДНИХ УЗРОКА ","",1,0,0,484,"НАКНАДА ШТЕТЕ ЗА ПОВРЕДЕ ИЛИ ШТЕТУ НАСТАЛУ УСЛЕД ЕЛЕМЕНТАРНИХ НЕПОГОДА ИЛИ ДРУГИХ ПРИРОДНИХ УЗРОКА"]
[null,485,"Накнада штете за повреде или штету нанету од стране државних органа",485,"НАКНАДА ШТЕТЕ ЗА ПОВРЕДЕ ИЛИ ШТЕТУ НАНЕТУ ОД СТРАНЕ ДРЖАВНИХ ОРГАНА","","",0,0,485,"НАКНАДА ШТЕТЕ ЗА ПОВРЕДЕ ИЛИ ШТЕТУ НАНЕТУ ОД СТРАНЕ ДРЖАВНИХ ОРГАНА"]
[null,489,"Расходи који се финансирају из средстава за реализацију Националног инвестиционог плана",489,"РАСХОДИ КОЈИ СЕ ФИНАНСИРАЈУ ИЗ СРЕДСТАВА ЗА РЕАЛИЗАЦИЈУ НАЦИОНАЛНОГ ИНВЕСТИЦИОНОГ ПЛАНА","","",0,0,489,"РАСХОДИ КОЈИ СЕ ФИНАНСИРАЈУ ИЗ СРЕДСТАВА ЗА РЕАЛИЗАЦИЈУ НАЦИОНАЛНОГ ИНВЕСТИЦИОНОГ ПЛАНА"]
[1,494,"Текући расходи",494,"ТЕКУЋИ РАСХОДИ","","",0,0,494,"ТЕКУЋИ РАСХОДИ"]
[1,495,"Издаци за нефинансијску имовину",495,"ИЗДАЦИ ЗА НЕФИНАНСИЈСКУ ИМОВИНУ","","",0,0,495,"ИЗДАЦИ ЗА НЕФИНАНСИЈСКУ ИМОВИНУ"]
[1,496,"Издаци за отплату главнице и набавку финансијске имовине",496,"ИЗДАЦИ ЗА ОТПЛАТУ ГЛАВНИЦЕ И НАБАВКУ ФИНАНСИЈСКЕ ИМОВИНЕ ","",1,0,0,496,"ИЗДАЦИ ЗА ОТПЛАТУ ГЛАВНИЦЕ И НАБАВКУ ФИНАНСИЈСКЕ ИМОВИНЕ"]
[1,499,"Средства резерве",499,"СРЕДСТВА РЕЗЕРВЕ ","",1,0,0,499,"СРЕДСТВА РЕЗЕРВЕ"]
[null,511,"Зграде и грађевински објекти",511,"ЗГРАДЕ И ГРАЂЕВИНСКИ ОБЈЕКТИ ","",1,0,0,511,"ЗГРАДЕ И ГРАЂЕВИНСКИ ОБЈЕКТИ"]
[null,512,"Машине и опрема",512,"МАШИНЕ И ОПРЕМА","","",0,0,512,"МАШИНЕ И ОПРЕМА"]
[null,513,"Остале некретнине и опрема",513," ОСТАЛЕ НЕКРЕТНИНЕ И ОПРЕМА","",1,0,0,513,"ОСТАЛЕ НЕКРЕТНИНЕ И ОПРЕМА"]
[null,514,"Култивисана имовина",514,"КУЛТИВИСАНА ИМОВИНА","","",0,0,514,"КУЛТИВИСАНА ИМОВИНА"]
[null,515,"Нематеријална имовина",515,"НЕМАТЕРИЈАЛНА ИМОВИНА","","",0,0,515,"НЕМАТЕРИЈАЛНА ИМОВИНА"]
[null,521,"Робне резерве",521,"РОБНЕ РЕЗЕРВЕ","","",0,0,521,"РОБНЕ РЕЗЕРВЕ"]
[null,522,"Залихе производње",522,"ЗАЛИХЕ ПРОИЗВОДЊЕ","","",0,0,522,"ЗАЛИХЕ ПРОИЗВОДЊЕ"]
[null,523,"Залихе робе за даљу продају",523,"ЗАЛИХЕ РОБЕ ЗА ДАЉУ ПРОДАЈУ ","",1,0,0,523,"ЗАЛИХЕ РОБЕ ЗА ДАЉУ ПРОДАЈУ"]
[null,531,"Драгоцености",531,"ДРАГОЦЕНОСТИ","","",0,0,531,"ДРАГОЦЕНОСТИ"]
[null,541,"Земљиште",541,"ЗЕМЉИШТЕ ","",1,0,0,541,"ЗЕМЉИШТЕ"]
[null,542,"Рудна богатства",542,"РУДНА БОГАТСТВА","","",0,0,542,"РУДНА БОГАТСТВА"]
[null,543,"Шуме и воде",543,"ШУМЕ И ВОДЕ","","",0,0,543,"ШУМЕ И ВОДЕ"]
[null,551,"Нефинансијска имовина која се финансира из средстава за реализацију Националног инвестиционог плана",551,"НЕФИНАНСИЈСКА ИМОВИНА КОЈА СЕ ФИНАНСИРА ИЗ СРЕДСТАВА ЗА РЕАЛИЗАЦИЈУ НАЦИОНАЛНОГ ИНВЕСТИЦИОНОГ ПЛАНА","","",0,0,551,"НЕФИНАНСИЈСКА ИМОВИНА КОЈА СЕ ФИНАНСИРА ИЗ СРЕДСТАВА ЗА РЕАЛИЗАЦИЈУ НАЦИОНАЛНОГ ИНВЕСТИЦИОНОГ ПЛАНА"]
[null,611,"Отплата главнице домаћим кредиторима",611,"ОТПЛАТА ГЛАВНИЦЕ ДОМАЋИМ КРЕДИТОРИМА","","",0,0,611,"ОТПЛАТА ГЛАВНИЦЕ ДОМАЋИМ КРЕДИТОРИМА"]
[null,612,"Отплата главнице страним кредиторима",612,"ОТПЛАТА ГЛАВНИЦЕ СТРАНИМ КРЕДИТОРИМА","","",0,0,612,"ОТПЛАТА ГЛАВНИЦЕ СТРАНИМ КРЕДИТОРИМА"]
[null,613,"Отплата главнице по гаранцијама",613,"ОТПЛАТА ГЛАВНИЦЕ ПО ГАРАНЦИЈАМА ","",1,0,0,613,"ОТПЛАТА ГЛАВНИЦЕ ПО ГАРАНЦИЈАМА"]
[null,614,"Отплата главнице за финансијски лизинг",614,"ОТПЛАТА ГЛАВНИЦЕ ЗА ФИНАНСИЈСКИ ЛИЗИНГ ","",1,0,0,614,"ОТПЛАТА ГЛАВНИЦЕ ЗА ФИНАНСИЈСКИ ЛИЗИНГ"]
[null,621,"Набавка домаће финансијске имовине",621,"НАБАВКА ДОМАЋЕ ФИНАНСИЈСКЕ ИМОВИНЕ","","",0,0,621,"НАБАВКА ДОМАЋЕ ФИНАНСИЈСКЕ ИМОВИНЕ"]
[null,622,"Набавка стране финансијске имовине",622,"НАБАВКА СТРАНЕ ФИНАНСИЈСКЕ ИМОВИНЕ","","",0,0,622,"НАБАВКА СТРАНЕ ФИНАНСИЈСКЕ ИМОВИНЕ"]
[null,623,"Набавка финансијске имовине која се финансира из средстава за реализацију Националног инвестиционог плана",623,"НАБАВКА ФИНАНСИЈСКЕ ИМОВИНЕ КОЈА СЕ ФИНАНСИРА ИЗ СРЕДСТАВА ЗА РЕАЛИЗАЦИЈУ  НАЦИОНАЛНОГ ИНВЕСТИЦИОНОГ ПЛАНА","",1,0,0,623,"НАБАВКА ФИНАНСИЈСКЕ ИМОВИНЕ КОЈА СЕ ФИНАНСИРА ИЗ СРЕДСТАВА ЗА РЕАЛИЗАЦИЈУ НАЦИОНАЛНОГ ИНВЕСТИЦИОНОГ ПЛАНА"]
[null,699,{"$f":"+E67","v":"КОНТРА КЊИЖЕЊЕ – ИЗДАЦИ ЗА ОТПЛАТУ ГЛАВНИЦЕ И НАБАВКУ ФИНАНСИЈСКЕ ИМОВИНЕ"},699,"КОНТРА КЊИЖЕЊЕ – ИЗДАЦИ ЗА ОТПЛАТУ ГЛАВНИЦЕ И НАБАВКУ ФИНАНСИЈСКЕ ИМОВИНЕ","","",0,111,699,"КОНТРА КЊИЖЕЊЕ - ИЗДАЦИ ЗА ОТПЛАТУ ГЛАВНИЦЕ И НАБАВКУ ФИНАНСИЈСКЕ ИМОВИНЕ"]
[null,null,null,null,null,null,null,null,null,711,"ПОРЕЗ НА ДОХОДАК, ДОБИТ И КАПИТАЛНЕ ДОБИТКЕ"]
[null,null,null,null,null,null,null,null,null,712,"ПОРЕЗ НА ФОНД ЗАРАДА"]
[null,null,null,null,null,null,null,null,null,713,"ПОРЕЗ НА ИМОВИНУ"]
[null,null,null,null,null,null,null,null,null,714,"ПОРЕЗ НА ДОБРА И УСЛУГЕ"]
[null,null,null,null,null,null,null,null,null,715,"ПОРЕЗ НА МЕЂУНАРОДНУ ТРГОВИНУ И ТРАНСАКЦИЈЕ"]
[null,null,null,null,null,null,null,null,null,716,"ДРУГИ ПОРЕЗИ"]
[null,null,null,null,null,null,null,null,null,717,"АКЦИЗЕ"]
[null,null,null,null,null,null,null,null,null,719,"ЈЕДНОКРАТНИ ПОРЕЗ НА ЕКСТРА ПРОФИТ И ЕКСТРА ИМОВИНУ СТЕЧЕНУ КОРИШЋЕЊЕМ ПОСЕБНИХ ПОГОДНОСТИ"]
[null,null,null,null,null,null,null,null,null,721,"ДОПРИНОСИ ЗА СОЦИЈАЛНО ОСИГУРАЊЕ"]
[null,null,null,null,null,null,null,null,null,722,"ОСТАЛИ СОЦИЈАЛНИ ДОПРИНОСИ"]
[null,null,null,null,null,null,null,null,null,731,"ДОНАЦИЈЕ ОД ИНОСТРАНИХ ДРЖАВА"]
[null,null,null,null,null,null,null,null,null,732,"ДОНАЦИЈЕ ОД МЕЂУНАРОДНИХ ОРГАНИЗАЦИЈА"]
[null,null,null,null,null,null,null,null,null,733,"ТРАНСФЕРИ ОД ДРУГИХ НИВОА ВЛАСТИ"]
[null,null,null,null,null,null,null,null,null,741,"ПРИХОДИ ОД ИМОВИНЕ"]
[null,null,null,null,null,null,null,null,null,742,"ПРИХОДИ ОД ПРОДАЈЕ ДОБАРА И УСЛУГА"]
[null,null,null,null,null,null,null,null,null,743,"НОВЧАНЕ КАЗНЕ И ОДУЗЕТА ИМОВИНСКА КОРИСТ"]
[null,null,null,null,null,null,null,null,null,744,"ДОБРОВОЉНИ ТРАНСФЕРИ ОД ФИЗИЧКИХ И ПРАВНИХ ЛИЦА"]
[null,null,null,null,null,null,null,null,null,745,"МЕШОВИТИ И НЕОДРЕЂЕНИ ПРИХОДИ"]
[null,null,null,null,null,null,null,null,null,771,"МЕМОРАНДУМСКЕ СТАВКЕ ЗА РЕФУНДАЦИЈУ РАСХОДА"]
[null,null,null,null,null,null,null,null,null,772,"МЕМОРАНДУМСКЕ СТАВКЕ ЗА РЕФУНДАЦИЈУ РАСХОДА ИЗ ПРЕТХОДНЕ ГОДИНЕ"]
[null,null,null,null,null,null,null,null,null,781,"ТРАНСФЕРИ ИЗМЕЂУ БУЏЕТСКИХ КОРИСНИКА НА ИСТОМ НИВОУ"]
[null,null,null,null,null,null,null,null,null,791,"ПРИХОДИ ИЗ БУЏЕТА"]
[null,null,null,null,null,null,null,null,null,811,"ПРИМАЊА ОД ПРОДАЈЕ НЕПОКРЕТНОСТИ"]
[null,null,null,null,null,null,null,null,null,812,"ПРИМАЊА ОД ПРОДАЈЕ ПОКРЕТНЕ ИМОВИНЕ"]
[null,null,null,null,null,null,null,null,null,813,"ПРИМАЊА ОД ПРОДАЈЕ ОСТАЛИХ ОСНОВНИХ СРЕДСТАВА"]
[null,null,null,null,null,null,null,null,null,821,"ПРИМАЊА ОД ПРОДАЈЕ РОБНИХ РЕЗЕРВИ"]
[null,null,null,null,null,null,null,null,null,822,"ПРИМАЊА ОД ПРОДАЈЕ ЗАЛИХА ПРОИЗВОДЊЕ"]
[null,null,null,null,null,null,null,null,null,823,"ПРИМАЊА ОД ПРОДАЈЕ РОБЕ ЗА ДАЉУ ПРОДАЈУ"]
[null,null,null,null,null,null,null,null,null,831,"ПРИМАЊА ОД ПРОДАЈЕ ДРАГОЦЕНОСТИ"]
[null,null,null,null,null,null,null,null,null,841,"ПРИМАЊА ОД ПРОДАЈЕ ЗЕМЉИШТА"]
[null,null,null,null,null,null,null,null,null,842,"ПРИМАЊА ОД ПРОДАЈЕ ПОДЗЕМНИХ БЛАГА"]
[null,null,null,null,null,null,null,null,null,843,"ПРИМАЊА ОД ПРОДАЈЕ ШУМА И ВОДА"]
[null,null,null,null,null,null,null,null,null,911,"ПРИМАЊА ОД ДОМАЋИХ ЗАДУЖИВАЊА"]
[null,null,null,null,null,null,null,null,null,912,"ПРИМАЊА ОД ИНОСТРАНОГ ЗАДУЖИВАЊА"]
[null,null,null,null,null,null,null,null,null,921,"ПРИМАЊА ОД ПРОДАЈЕ ДОМАЋЕ ФИНАНСИЈСКЕ ИМОВИНЕ"]
[null,null,null,null,null,null,null,null,null,922,"ПРИМАЊА ОД ПРОДАЈЕ СТРАНЕ ФИНАНСИЈСКЕ"]
[null,null,null,null,null,null,null,null,null,999,"КОНТРА КЊИЖЕЊЕ - ПРИМАЊА ОД ЗАДУЖИВАЊА И ПРОДАЈЕ ФИНАНСИЈСКЕ ИМОВИНЕ"]

{"sheet":"ipa-šifrarnik","index":5,"n_rows":109,"n_cols":8,"rows_kept":109,"cut":false,"hidden":true,"merged":[]}
[]
[]
["Count of naziv projekta"]
["PROG",null,null,"PROJ","naziv projekta","Total"]
["2602",null,"ДРУГА КОМПОНЕНТА ИНСТРУМЕНТА ЗА ПРЕТПРИСТУПНУ ПОМОЋ ЕУ - ПРЕКОГРАНИЧНА САРАДЊА","0701"," Прекогранична сарадња Мађарска-Србија 2007",1]
[null,"2602-07","ПРОГРАМИ ПРЕКОГРАНИЧНЕ САРАДЊЕ КОЈИ СЕ ФИНАНСИРАЈУ ИЗ ИПА 2007","0702"," Прекогранична сарадња Румунија-Србија 2007",1]
[null,"2602-08","ПРОГРАМИ ПРЕКОГРАНИЧНЕ САРАДЊЕ КОЈИ СЕ ФИНАНСИРАЈУ ИЗ ИПА 2008","0703"," Прекогранична сарадња Бугарска-Србија 2007",1]
[null,"2602-09","ПРОГРАМИ ПРЕКОГРАНИЧНЕ САРАДЊЕ КОЈИ СЕ ФИНАНСИРАЈУ ИЗ ИПА 2009","0704"," Јадрански  програм 2007",1]
[null,null,null,"0705"," Прекогранична сарадња Хрватска-Србија 2007",1]
[null,null,null,"0706"," Југоисточна Европа ЈИЕ 2007",1]
[null,null,null,"0707"," Прекогранична сарадња Србија-Босна и Херцеговина 2007",1]
[null,null,null,"0708"," Прекогранична сарадња Србија-Црна Гора 2007",1]
[null,null,null,"0801"," Прекогранична сарадња Мађарска-Србија 2008",1]
[null,null,null,"0802"," Прекогранична сарадња Румунија-Србија 2008",1]
[null,null,null,"0803"," Прекогранична сарадња Бугарска-Србија 2008",1]
[null,null,null,"0804"," Јадрански  програм 2008",1]
[null,null,null,"0805"," Прекогранична сарадња Хрватска-Србија 2008",1]
[null,null,null,"0806"," Југоисточна Европа ЈИЕ 2008",1]
[null,null,null,"0807"," Прекогранична сарадња Србија-Босна и Херцеговина 2008",1]
[null,null,null,"0808"," Прекогранична сарадња Србија-Црна Гора 2008",1]
[null,null,null,"0901"," Прекогранична сарадња Мађарска-Србија 2009",1]
[null,null,null,"0902"," Прекогранична сарадња Румунија-Србија 2009",1]
[null,null,null,"0903"," Прекогранична сарадња Бугарска-Србија 2009",1]
[null,null,null,"0904"," Јадрански  програм 2009",1]
[null,null,null,"0905"," Прекогранична сарадња Хрватска-Србија 2009",1]
[null,null,null,"0906"," Југоисточна Европа ЈИЕ 2009",1]
[null,null,null,"0907"," Прекогранична сарадња Србија-Босна и Херцеговина 2009",1]
[null,null,null,"0908"," Прекогранична сарадња Србија-Црна Гора 2009",1]
[]
[null,"2602-10","ПРОГРАМИ ПРЕКОГРАНИЧНЕ САРАДЊЕ КОЈИ СЕ ФИНАНСИРАЈУ ИЗ ИПА 2010","1001"," Прекогранична сарадња Мађарска-Србија 2010"]
[null,null,null,"1002"," Прекогранична сарадња Румунија-Србија 2010"]
[null,null,null,"1003"," Прекогранична сарадња Бугарска-Србија 2010"]
[null,null,null,"1004"," Јадрански  програм 2010"]
[null,null,null,"1005"," Прекогранична сарадња Хрватска-Србија 2010"]
[null,null,null,"1006"," Југоисточна Европа ЈИЕ 2010"]
[null,null,null,"1007"," Прекогранична сарадња Србија-Босна и Херцеговина 2010"]
[null,null,null,"1008"," Прекогранична сарадња Србија-Црна Гора 2010"]
[null,"2602-11","ПРОГРАМИ ПРЕКОГРАНИЧНЕ САРАДЊЕ КОЈИ СЕ ФИНАНСИРАЈУ ИЗ ИПА 2011","1101"," Прекогранична сарадња Мађарска-Србија 2011"]
[null,null,null,"1102"," Прекогранична сарадња Румунија-Србија 2011"]
[null,null,null,"1103"," Прекогранична сарадња Бугарска-Србија 2011"]
[null,null,null,"1104"," Јадрански  програм 2011"]
[null,null,null,"1105"," Прекогранична сарадња Хрватска-Србија 2011"]
[null,null,null,"1106"," Југоисточна Европа ЈИЕ 2011"]
[null,null,null,"1107"," Прекогранична сарадња Србија-Босна и Херцеговина 2011"]
[null,null,null,"1108"," Прекогранична сарадња Србија-Црна Гора 2011"]
[null,"2602-12","ПРОГРАМИ ПРЕКОГРАНИЧНЕ САРАДЊЕ КОЈИ СЕ ФИНАНСИРАЈУ ИЗ ИПА 2012","1201"," Прекогранична сарадња Мађарска-Србија 2012"]
[null,null,null,"1202"," Прекогранична сарадња Румунија-Србија 2012"]
[null,null,null,"1203"," Прекогранична сарадња Бугарска-Србија 2012"]
[null,null,null,"1204"," Јадрански  програм 2012"]
[null,null,null,"1205"," Прекогранична сарадња Хрватска-Србија 2012"]
[null,null,null,"1206"," Југоисточна Европа ЈИЕ 2012"]
[null,null,null,"1207"," Прекогранична сарадња Србија-Босна и Херцеговина 2012"]
[null,null,null,"1208"," Прекогранична сарадња Србија-Црна Гора 2012"]
[]
[]
[]
[]
[]
["Grand Total",null,null,null,null,43]
["2601",null,"ПРВА КОМПОНЕНТА ИНСТРУМЕНТА ЗА ПРЕТПРИСТУПНУ ПОМОЋ ЕУ - ПОДРШКА ТРАНЗИЦИЈИ И ИЗГРАДЊА ИНСТИТУЦИЈА","0801","Подршка учешћу Србије у Програмима Заједнице",7]
[null,"2601-08","ПРОЈЕКТИ КОЈИ СЕ ФИНАНСИРАЈУ ИЗ ИПА 2008","0802","Подршка успостављању система квалитета на националном нивоу у основном и средњем образовању",7]
[null,null,null,"0803","Подршка уклађивању стандарда царинске службе са стандардима, организацијом и методологијом царинских служби земаља чланица ЕУ",2]
[null,null,null,"0804","Програм подршке развоју локалне инфраструктуре",1]
[null,null,null,"0805","Подршка стипендирању студената на студијама у земљама ЕУ и размени студената",1]
[null,null,null,"0806","Подршка контроли и искорењивању класичне свињске грознице и беснила у Републици Србији",1]
[null,null,null,"0807","Системски развој основног образовања одраслих (друга шанса)",null,"novo","2010-07-30"]
[null,null,null,"0808","Подршка заштити животне средине у енергетском сектору",null,"novo","2010-07-30"]
[null,null,null,"0809","Подршка увођењу децентрализованог система управљања фондовима ЕУ",null,"novo","2010-07-30"]
[null,"2601-09",null,"0901","Подршка избеглицама и интерно расељеним лицима",null,"novo","2010-07-30"]
[null,null,null,"0902","Предшколско образовање",null,"novo","2010-07-30"]
[null,null,null,"0903","Заштита потрошача",null,"novo","2010-07-30"]
[null,"2601-10",null,"1001","Подршка општинама у Републици Србији у припреми и спровођењу инфраструктурних пројеката (МИСП 2010)",null,"novo","2010-07-30"]
[null,null,null,"1002","Подршка процесу спровођења реформи државне управе",null,"novo","2010-07-30"]
[null,null,null,"1003","Пројекат за спречавање прања новца и финансирања тероризма у Републици Србији",null,"novo","2010-07-30"]
[null,null,null,"1004","Европски програм подршке јужној и југозападној Србији",null,"novo","2010-07-30"]
[null,null,null,"1005","Развој служби палијативног збрињавања у Републици Србији",null,"novo","2010-07-30"]
[null,null,null,"1006","Подршка преласку на дигитално емитовање у Републици Србији",null,"novo","2010-07-30"]
[null,null,null,"1007","Изградња капацитета институција задужених за управљање миграцијама и реинтеграцију повратника у Републици Србији",null,"novo","2010-07-30"]
[null,null,null,"1008","Јачање система тржишног надзора прехрамбених и непрехрамбених производа у Републици Србији",null,"novo","2010-07-30"]
[null,null,null,"1009","Институционализована изградња капацитета и подршка пољопривредном и руралном развоју у Републици Србији",null,"novo","2010-07-30"]
[null,null,null,"1010","Изградња трафо станица 400/110 Кв Врање 4 и Лесковац 2"]
[null,null,null,"1011","Имплементација Стратегије за борбу против дрога-смањење понуде"]
[null,null,null,"1012","Скрининг карцинома дојке и побољшање капацитета превентивне здравствене заштите у Републици Србији"]
[]
[null,"2601-11",null,"1101","Подршка за учешће у програмима Заједнице"]
[null,null,null,"1102","Модернизација Пореске управе"]
[null,null,null,"1103","Подршка спровођењу стратегија за интерно расељена лица, избеглице и повратнике"]
[null,null,null,"1104","Подршка развоју људског капитала и истраживању"]
[null,null,null,"1105","Усаглашавање са Европским статистичким системом"]
[null,null,null,"1106"]
[null,null,null,"1107"]
[null,null,null,"1108"]
[null,null,null,"1109"]
[null,null,null,"1110"]
[null,null,null,"1111"]
[null,null,null,"1112"]
[]
[null,"2601-12",null,"1201"]
[null,null,null,"1202"]
[null,null,null,"1203"]
[null,null,null,"1204"]
[null,null,null,"1205"]
[null,null,null,"1206"]
[null,null,null,"1207"]
[null,null,null,"1208"]
[null,null,null,"1209"]
[null,null,null,"1210"]
[null,null,null,"1211"]
[null,null,null,"1212"]

{"sheet":"Funkcije","index":6,"n_rows":138,"n_cols":2,"rows_kept":138,"cut":false,"hidden":true,"merged":[]}
["FUNKCIJA","NAZIV"]
["000","СОЦИЈАЛНА ЗАШТИТА"]
["010","Болест и инвалидност"]
["011","Болест"]
["012","Инвалидност"]
["020","Старост"]
["030","Породице преминулих"]
["040","Породица и деца"]
["050","Незапосленост"]
["060","Становање"]
["070","Социјална помоћ угроженом становништву некласификована на другом месту"]
["080","И&Р Социјална заштита"]
["090","Социјална заштита некласификована на другом месту"]
["100","ОПШТЕ ЈАВНЕ УСЛУГЕ"]
["110","Извршни и законодавни органи, финансијски и фискални послови и спољни послови"]
["111","Извршни и законодавни органи"]
["112","Финансијски и фискални послови и услуге"]
["113","Спољни послови"]
["120","Страна економска помоћ (давање)"]
["121","Економска помоћ земљама у развоју и земљама у транзицији"]
["122","Економска помоћ усмерена преко међународних организација"]
["130","Опште услуге"]
["131","Опште кадровске услуге"]
["132","Глобалне услуге планирања и статистике"]
["133","Остале опште услуге"]
["140","Основно истраживање"]
["150","И&Р* Опште јавне услуге"]
["160","Опште јавне услуге које нису класификоване на другом месту"]
["170","Трансакције везане за јавни дуг"]
["180","Трансакције општег карактера између различитих нивоа власти"]
["200","ОДБРАНА"]
["210","Војна одбрана"]
["220","Цивилна одбрана"]
["230","Инострана војна помоћ"]
["240","И&Р Одбрана"]
["250","Одбрана некласификована на другом месту"]
["300","ЈАВНИ РЕД И МИР"]
["310","Полицијске услуге"]
["320","Услуге противпожарне заштите"]
["330","Судови"]
["340","Затвори"]
["350","И&Р Јавни ред и мир"]
["360","Јавни ред и мир некласификован на другом месту"]
["400","ЕКОНОМСКИ ПОСЛОВИ"]
["410","Општи економски и комерцијални послови и послови по питању рада"]
["411","Општи економски и комерцијални послови"]
["412","Општи послови по питању рада"]
["420","Пољопривреда, шумарство, лов и риболов"]
["421","Пољопривреда"]
["422","Шумарство"]
["423","Лов и риболов"]
["430","Гориво и енергија"]
["431","Угаљ и друга чврста минерална горива"]
["432","Нафта и природни гас"]
["434","Нуклеарно гориво"]
["435","Остала горива"]
["436","Електрична енергија"]
["437","Неелекртична енергија"]
["440","Рударство, производња и изградња"]
["441","Ископавање минералних ресурса осим минералних горива"]
["442","Производња"]
["443","Изградња"]
["450","Транспорт"]
["451","Друмски транспорт"]
["452","Водени транспорт"]
["453","Железнички транспорт"]
["454","Ваздушни транспорт"]
["455","Цевоводи"]
["460","Комуникације"]
["470","Остале делатности"]
["471","Дистрибутивна трговина, смештај и складиштење"]
["472","Хотели и ресторани"]
["473","Туризам"]
["474","Вишенаменски развојни пројекти"]
["480","И&Р Економски послови"]
["481","И&Р Општи економски и комерцијални послови и послови по питању рада"]
["482","И&Р Пољопривреда, шумарство, лов и риболов"]
["483","И&Р Гориво и енергија"]
["484","И&Р Рударство, производња и градња"]
["485","И&Р Транспорт"]
["486","И&Р Комуникације"]
["487","И&Р Остале делатности"]
["490","Економски послови некласификовани на другом месту"]
["500","ЗАШТИТА ЖИВОТНЕ СРЕДИНЕ"]
["510","Управљање отпадом"]
["520","Управљање отпадним водама"]
["530","Смањење загађености"]
["540","Заштита разноврсности флоре и фауне и заштита крајолика"]
["550","И&Р Заштита животне средине"]
["560","Заштита животне средине некласификована на другом месту"]
["600","СТАМБЕНИ РАЗВОЈ И РАЗВОЈ ЗАЈЕДНИЦЕ"]
["610","Стамбени развој"]
["620","Развој заједнице"]
["630","Водоснабдевање"]
["640","Улична расвета"]
["650","И&Р Стамбени развој и развој заједнице"]
["660","Стамбени развој и развој заједнице некласификован на другом месту"]
["700","ЗДРАВСТВО"]
["710","Медицински производи, уређаји и опрема"]
["711","Фармацеутски производи"]
["712","Остали медицински производи"]
["713","Терапеутски уређаји и опрема"]
["720","Ванболничке услуге"]
["721","Опште медицинске услуге"]
["722","Специјалистичке медицинске услуге"]
["723","Зубарске услуге"]
["724","Парамедицинске услуге"]
["730","Болничке услуге"]
["731","Опште болничке услуге"]
["732","Специјалистичке болничке услуге"]
["733","Услуге медицинских и породиљских центара"]
["734","Услуге старачких домова и домова за опоравак"]
["740","Јавне здравствене услуге"]
["750","И&Р Здравство"]
["760","Здравство некласификовано на другом месту"]
["800","РЕКРЕАЦИЈА, КУЛТУРА И ВЕРЕ"]
["810","Услуге рекреације и спорта"]
["820","Услуге културе"]
["830","Услуге емитовања и издаваштва"]
["840","Верске и друге услуге заједнице"]
["850","И&Р Рекреација, култура и вере"]
["860","Рекреација, култура и вере некласификоване на другом месту"]
["900","ОБРАЗОВАЊЕ"]
["910","Предшколско и основно образовање"]
["911","Предшколско образовање"]
["912","Основно образовање"]
["920","Средње образовање"]
["921","Ниже средње образовање"]
["922","Више средње образовање"]
["930","Више образовање"]
["940","Високо образовање"]
["941","Први степен високог образовања"]
["942","Други степен високог образовања"]
["950","Образовање које није дефинисано нивоом"]
["960","Помоћне услуге образовању"]
["970","И&Р Образовање"]
["980","Образовање некласификовано на другом месту"]
["FFF","Унети шифру функције "]

{"sheet":"korisnici","index":7,"n_rows":178,"n_cols":3,"rows_kept":178,"cut":false,"hidden":true,"merged":[]}
["organizacija","naziv_organizacije  a2   b178","analiticar"]
[10100,"ПРЕДСЕДНИК РЕПУБЛИКЕ","Vera"]
[10200,"ГЕНЕРАЛНИ СЕКРЕТАРИЈАТ ВЛАДЕ","Ana"]
[10201,"КАНЦЕЛАРИЈА ЗА САРАДЊУ С МЕДИЈИМА","Ana"]
[10202,"ЦЕНТАР ЗА РАЗМИНИРАЊЕ","Jelica"]
[10204,"КАБИНЕТ ПРЕДСЕДНИКА ВЛАДЕ","Ana"]
[10206,"СЛУЖБА ЗА УПРАВЉАЊЕ КАДРОВИМА","Ana"]
[10208,"КАНЦЕЛАРИЈА НАЦИОНАЛНОГ САВЕТА ЗА САРАДЊУ СА МЕЂУНАРОДНИМ ТРИБУНАЛОМ ЗА КРИВИЧНО ГОЊЕЊЕ ЛИЦА ОДГОВОРНИХ ЗА ТЕШКА КРШЕЊА МЕЂУНАРОДНОГ ХУМАНИТАРНОГ ПРАВА ПОЧИЊЕНА НА ТЕРИТОРИЈИ БИВШЕ ЈУГОСЛАВИЈЕ ОД 1991. ГОДИНЕ","Ana"]
[10215,"КАНЦЕЛАРИЈА ЗА ОДРЖИВИ РАЗВОЈ НЕДОВОЉНО РАЗВИЈЕНИХ ПОДРУЧЈА","Ana"]
[10220,"СЛУЖБА КООРДИНАЦИОНОГ ТЕЛА ВЛАДЕ РЕПУБЛИКЕ СРБИЈЕ ЗА ОПШТИНЕ ПРЕШЕВО, БУЈАНОВАЦ И МЕДВЕЂА","Ana"]
[10222,"КАНЦЕЛАРИЈА САВЕТА ЗА НАЦИОНАЛНУ БЕЗБЕДНОСТ И ЗАШТИТУ ТАЈНИХ ПОДАТАКА","Ana"]
[10223,"КАНЦЕЛАРИЈА ЗА САРАДЊУ СА ЦИВИЛНИМ ДРУШТВОМ ","Ana"]
[10224,"КАНЦЕЛАРИЈА ЗА РЕГУЛAТОРНУ РЕФОРМУ И АНАЛИЗУ ЕФЕКАТА ПРОПИСА","Ana"]
[10225,"КАНЦЕЛАРИЈА ЗА РЕВИЗИЈУ СИСТЕМА УПРАВЉАЊА СРЕДСТВИМА ЕВРОПСКЕ УНИЈЕ","Ana"]
[10226,"КАНЦЕЛАРИЈА ЗА СТРУЧНЕ И ОПЕРАТИВНЕ ПОСЛОВЕ У ПРЕГОВАРАЧКОМ ПРОЦЕСУ","Ana"]
[10228,"КАНЦЕЛАРИЈА ЗА КОСОВО И МЕТОХИЈУ","Tanja"]
[10229,"КАНЦЕЛАРИЈА ЗА ЉУДСКА И МАЊИНСКА ПРАВА","Ana"]
[10230,"КАНЦЕЛАРИЈА ЗА САРАДЊУ С ДИЈАСПОРОМ И СРБИМА У РЕГИОНУ","Ana"]
[10231,"КАНЦЕЛАРИЈА ЗА САРАДЊУ С ЦРКВАМА И ВЕРСКИМ ЗАЈЕДНИЦАМА","Ana"]
[10232,"КАБИНЕТ ПРВОГ ПОТПРЕДСЕДНИКА ВЛАДЕ ЗАДУЖЕНОГ ЗА ОДБРАНУ, БЕЗБЕДНОСТ И БОРБУ ПРОТИВ КОРУПЦИЈЕ И КРИМИНАЛА И МИНИСТРА ОДБРАНЕ","Ana"]
[10233,"КАБИНЕТ ПОТПРЕДСЕДНИКА ВЛАДЕ И МИНИСТРА РАДА, ЗАПОШЉАВАЊА И СОЦИЈАЛНЕ ПОЛИТИКЕ","Ana"]
[10234,"КАБИНЕТ ПОТПРЕДСЕДНИКА ВЛАДЕ ЗА ЕВРОПСКЕ ИНТЕГРАЦИЈЕ","Ana"]
[10235,"КАБИНЕТ ПОТПРЕДСЕДНИКА ВЛАДЕ  И МИНИСТРА  СПОЉНЕ И УНУТРАШЊЕ ТРГОВИНЕ И ТЕЛЕКОМУНИКАЦИЈА","Ana"]
[10236,"КАНЦЕЛАРИЈА ЗА БРЗИ ОДГОВОР","Ana"]
[10300,"МИНИСТАРСТВО ПРАВДЕ И ДРЖАВНЕ УПРАВЕ","Ana"]
[10301,"УПРАВА ЗА ИЗВРШЕЊЕ КРИВИЧНИХ САНКЦИЈА","Ana"]
[10302,"ДИРЕКЦИЈА ЗА УПРАВЉАЊЕ ОДУЗЕТОМ ИМОВИНОМ","Ana"]
[10303,"ПРАВОСУДНА АКАДЕМИЈА","Ana"]
[10500,"МИНИСТАРСТВО ФИНАНСИЈА И ПРИВРЕДЕ","Vera"]
[10502,"УПРАВА ЦАРИНА","Vera"]
[10505,"УПРАВА ЗА ТРЕЗОР","Vera"]
[10507,"УПРАВА ЗА ДУВАН","Nevenka"]
[10508,"УПРАВА ЗА СПРЕЧАВАЊЕ ПРАЊА НОВЦА","Nevenka"]
[10510,"УПРАВА ЗА СЛОБОДНЕ ЗОНЕ","Nevenka"]
[10511,"УПРАВА ЗА ЈАВНИ ДУГ","Nevenka"]
[10512,"ДИРЕКЦИЈА ЗА МЕРЕ И ДРАГОЦЕНЕ МЕТАЛЕ","Nevenka"]
[10513,"УСТАНОВА У ОБЛАСТИ СТАНДАРДИЗАЦИЈЕ","Nevenka"]
[10514,"УСТАНОВА У ОБЛАСТИ АКРЕДИТАЦИЈЕ","Nevenka"]
[10600,"МИНИСТАРСТВО УНУТРАШЊИХ ПОСЛОВА","Vera"]
[10700,"МИНИСТАРСТВО ПОЉОПРИВРЕДЕ, ШУМАРСТВА И ВОДОПРИВРЕДЕ","Milesa"]
[10701,"РЕПУБЛИЧКА ДИРЕКЦИЈА ЗА ВОДЕ","Milesa"]
[10702,"УПРАВА ЗА ПОЉОПРИВРЕДНО ЗЕМЉИШТЕ","Milesa"]
[10704,"ДИРЕКЦИЈА ЗА НАЦИОНАЛНЕ РЕФЕРЕНТНЕ ЛАБОРАТОРИЈЕ","Milesa"]
[10705,"УПРАВА ЗА АГРАРНА ПЛАЋАЊА","Milesa"]
[11800,"МИНИСТАРСТВО КУЛТУРЕ И ИНФОРМИСАЊА","Milesa"]
[11801,"УСТАНОВЕ КУЛТУРЕ","Milesa"]
[11900,"МИНИСТАРСТВО ЗДРАВЉА","Milica"]
[11901,"БУЏЕТСКИ ФОНД ЗА ПРОГРАМЕ СПРЕЧАВАЊА БОЛЕСТИ ИЗАЗВАНИХ КОНЗУМИРАЊЕМ ДУВАНА","Milica"]
[11902,"УПРАВА ЗА БИОМЕДИЦИНУ","Milica"]
[12001,"УПРАВА ЗА ШУМЕ","Milesa"]
[12500,"ДИРЕКЦИЈА ЗА ЖЕЛЕЗНИЦЕ","Marija"]
[13400,"МИНИСТАРСТВО РАДА, ЗАПОШЉАВАЊА И СОЦИЈАЛНЕ ПОЛИТИКЕ","Milica"]
[13401,"УПРАВА ЗА БЕЗБЕДНОСТ И ЗДРАВЉЕ НА РАДУ","Milica"]
[13402,"УПРАВА ЗА РОДНУ РАВНОПРАВНОСТ","Milica"]
[13403,"УСТАНОВЕ ЗА РЕГИСТАР ОБАВЕЗНОГ СОЦИЈАЛНОГ ОСИГУРАЊА И ОСТВАРИВАЊЕ ПРАВА ЗАПОСЛЕНИХ ИЗ РАДНОГ ОДНОСА","Milica"]
[13700,"МИНИСТАРСТВО ПРОСВЕТЕ, НАУКЕ И ТЕХНОЛОШКОГ РАЗВОЈА","Jelica"]
[13701,"ОСНОВНО ОБРАЗОВАЊЕ","Jelica"]
[13702,"СРЕДЊЕ ОБРАЗОВАЊЕ","Jelica"]
[13703,"УЧЕНИЧКИ СТАНДАРД","Jelica"]
[13704,"ВИШЕ И УНИВЕРЗИТЕТСКО ОБРАЗОВАЊЕ","Jelica"]
[13705,"СТУДЕНТСКИ СТАНДАРД","Jelica"]
[13709,"ЗАВОД ЗА УНАПРЕЂИВАЊЕ ОБРАЗОВАЊА И ВАСПИТАЊА","Jelica"]
[13710,"ЗАВОД ЗА ВРЕДНОВАЊЕ КВАЛИТЕТА ОБРAЗОВАЊА И ВАСПИТАЊА","Jelica"]
[13800,"МИНИСТАРСТВО ОМЛАДИНЕ И СПОРТА","Jelica"]
[13801,"АНТИДОПИНГ АГЕНЦИЈА РЕПУБЛИКЕ СРБИЈЕ","Jelica"]
[13802,"УСТАНОВЕ У ОБЛАСТИ ФИЗИЧКЕ КУЛТУРЕ","Jelica"]
[13803,"ФОНД ЗА МЛАДЕ ТАЛЕНТЕ","Jelica"]
[14000,"МИНИСТАРСТВО ПРИРОДНИХ РЕСУРСА, РУДАРСТВА И ПРОСТОРНОГ ПЛАНИРАЊА","Milesa"]
[14300,"МИНИСТАРСТВО РЕГИОНАЛНОГ РАЗВОЈА И ЛОКАЛНЕ САМОУПРАВЕ","Tanja"]
[14400,"МИНИСТАРСТВО САОБРАЋАЈА","Marija"]
[14401,"УПРАВА ЗА УТВРЂИВАЊЕ СПОСОБНОСТИ БРОДОВА ЗА ПЛОВИДБУ","Marija"]
[14402,"УПРАВА ЗА ТРАНСПОРТ ОПАСНОГ ТЕРЕТА","Marija"]
[14403,"ДИРЕКЦИЈА ЗА ВОДНЕ ПУТЕВЕ","Marija"]
[14500,"МИНИСТАРСТВО ГРАЂЕВИНАРСТВА И УРБАНИЗМА","Ceca"]
[14600,"МИНИСТАРСТВО ЕНЕРГЕТИКЕ, РАЗВОЈА И ЗАШТИТЕ ЖИВОТНЕ СРЕДИНЕ","Nevenka"]
[14601,"АГЕНЦИЈА ЗА ЗАШТИТУ ЖИВОТНЕ СРЕДИНЕ","Nevenka"]
[14700,"МИНИСТАРСТВО СПОЉНЕ И УНУТРАШЊЕ ТРГОВИНЕ И ТЕЛЕКОМУНИКАЦИЈА","Ana"]
[14701,"УПРАВА ЗА ДИГИТАЛНУ АГЕНДУ","Ana"]
[20100,"НАРОДНА СКУПШТИНА","Vera"]
[20101,"НАРОДНА СКУПШТИНА - СТРУЧНЕ СЛУЖБЕ","Vera"]
[20102,"ДРЖАВНА РЕВИЗОРСКА ИНСТИТУЦИЈА","Dragana"]
[20103,"ФИСКАЛНИ САВЕТ","Milica"]
[30100,"УСТАВНИ СУД","Finka"]
[30203,"РЕПУБЛИЧКО ЈАВНО ТУЖИЛАШТВО","Finka"]
[30204,"РЕПУБЛИЧКО ЈАВНО ПРАВОБРАНИЛАШТВО","Finka"]
[30210,"УПРАВНИ СУД","Finka"]
[30211,"АПЕЛАЦИОНИ СУДОВИ","Finka"]
[30214,"ТУЖИЛАШТВО ЗА РАТНЕ ЗЛОЧИНЕ","Finka"]
[30215,"ДРЖАВНО ВЕЋЕ ТУЖИЛАЦА","Finka"]
[30216,"ВИСОКИ САВЕТ СУДСТВА","Finka"]
[30221,"ВРХОВНИ КАСАЦИОНИ СУД","Finka"]
[30222,"ПРИВРЕДНИ АПЕЛАЦИОНИ СУД","Finka"]
[30225,"ВИШИ СУДОВИ","Finka"]
[30226,"ОСНОВНИ СУДОВИ","Finka"]
[30227,"ПРИВРЕДНИ СУДОВИ","Finka"]
[30228,"ВИША ЈАВНА ТУЖИЛАШТВА","Finka"]
[30229,"ОСНОВНА ЈАВНА ТУЖИЛАШТВА","Finka"]
[30232,"ВИШИ ПРЕКРШАЈНИ СУД","Finka"]
[30233,"ПРЕКРШАЈНИ СУДОВИ","Finka"]
[30235,"ТУЖИЛАШТВО ЗА ОРГАНИЗОВАНИ КРИМИНАЛ","Finka"]
[30236,"АПЕЛАЦИОНА ЈАВНА ТУЖИЛАШТВА","Finka"]
[30240,"СУДОВИ","Finka"]
[30250,"ЈАВНА ТУЖИЛАШТВА","Finka"]
[40100,"РЕПУБЛИЧКИ СЕКРЕТАРИЈАТ ЗА ЗАКОНОДАВСТВО","Finka"]
[40200,"ПОРЕСКА УПРАВА","Vera"]
[40400,"РЕПУБЛИЧКИ ЗАВОД ЗА СТАТИСТИКУ","Vera"]
[40500,"РЕПУБЛИЧКИ ХИДРОМЕТЕОРОЛОШКИ ЗАВОД","Vera"]
[40600,"РЕПУБЛИЧКИ ГЕОДЕТСКИ ЗАВОД","Milesa"]
[40700,"РЕПУБЛИЧКА ДИРЕКЦИЈА ЗА ИМОВИНУ РЕПУБЛИКЕ СРБИЈЕ","Marija"]
[40800,"РЕПУБЛИЧКИ СЕИЗМОЛОШКИ ЗАВОД","Milesa"]
[41000,"КОМЕСАРИЈАТ ЗА ИЗБЕГЛИЦЕ И МИГРАЦИЈЕ","Dragana"]
[41100,"УПРАВА ЗА ЗАЈЕДНИЧКЕ ПОСЛОВЕ РЕПУБЛИЧКИХ ОРГАНА","Jelica"]
[41102,"СЕВЕРНОБАЧКИ УПРАВНИ ОКРУГ","Finka"]
[41103,"СРЕДЊOБАНАТСКИ УПРАВНИ ОКРУГ","Finka"]
[41104,"СЕВЕРНОБАНАТСКИ УПРАВНИ ОКРУГ","Finka"]
[41105,"ЈУЖНОБАНАТСКИ  УПРАВНИ ОКРУГ","Finka"]
[41106,"ЗАПАДНОБАЧКИ УПРАВНИ ОКРУГ","Finka"]
[41107,"ЈУЖНОБАЧКИ УПРАВНИ ОКРУГ","Finka"]
[41108,"СРЕМСКИ УПРАВНИ ОКРУГ","Finka"]
[41109,"МАЧВАНСКИ УПРАВНИ ОКРУГ","Finka"]
[41110,"КОЛУБАРСКИ УПРАВНИ ОКРУГ","Finka"]
[41111,"ПОДУНАВСКИ УПРАВНИ ОКРУГ","Finka"]
[41112,"БРАНИЧЕВСКИ УПРАВНИ ОКРУГ","Finka"]
[41113,"ШУМАДИЈСКИ УПРАВНИ ОКРУГ","Finka"]
[41114,"ПОМОРАВСКИ УПРАВНИ ОКРУГ","Finka"]
[41115,"БОРСКИ УПРАВНИ ОКРУГ","Finka"]
[41116,"ЗАЈЕЧАРСКИ УПРАВНИ ОКРУГ","Finka"]
[41117,"ЗЛАТИБОРСКИ УПРАВНИ ОКРУГ","Finka"]
[41118,"МОРАВИЧКИ УПРАВНИ ОКРУГ","Finka"]
[41119,"РАШКИ УПРАВНИ ОКРУГ","Finka"]
[41120,"РАСИНСКИ УПРАВНИ ОКРУГ","Finka"]
[41121,"НИШАВСКИ УПРАВНИ ОКРУГ","Finka"]
[41122,"ТОПЛИЧКИ УПРАВНИ ОКРУГ","Finka"]
[41123,"ПИРОТСКИ УПРАВНИ ОКРУГ","Finka"]
[41124,"ЈАБЛАНИЧКИ УПРАВНИ ОКРУГ","Finka"]
[41125,"ПЧИЊСКИ УПРАВНИ ОКРУГ","Finka"]
[41126,"КОСОВСКИ УПРАВНИ ОКРУГ","Finka"]
[41127,"ПЕЋКИ УПРАВНИ ОКРУГ","Finka"]
[41128,"ПРИЗРЕНСКИ УПРАВНИ ОКРУГ","Finka"]
[41129,"КОСОВСКО-МИТРОВАЧКИ УПРАВНИ ОКРУГ","Finka"]
[41130,"КОСОВСКО-ПОМОРАВСКИ УПРАВНИ ОКРУГ","Finka"]
[41200,"УПРАВА ЗА ЈАВНЕ НАБАВКЕ","Nevenka"]
[41210,"РЕПУБЛИЧКА КОМИСИЈА ЗА ЗАШТИТУ ПРАВА У ПОСТУПЦИМА ЈАВНИХ НАБАВКИ","Nevenka"]
[41300,"БЕЗБЕДНОСНО - ИНФОРМАТИВНА АГЕНЦИЈА","Vera"]
[41900,"УПРАВА ЗА ВЕТЕРИНУ","Milesa"]
[42000,"УПРАВА ЗА ЗАШТИТУ БИЉА","Milesa"]
[42200,"КАНЦЕЛАРИЈА ЗА ЕВРОПСКЕ ИНТЕГРАЦИЈЕ","Ana"]
[42300,"СРПСКА АКАДЕМИЈА НАУКА И УМЕТНОСТИ","Finka"]
[42400,"САВЕТ ЗА БОРБУ ПРОТИВ КОРУПЦИЈЕ","Ana"]
[42600,"ПОВЕРЕНИК ЗА ИНФОРМАЦИЈЕ ОД ЈАВНОГ ЗНАЧАЈА И ЗАШТИТУ ПОДАТАКА О ЛИЧНОСТИ","Milica"]
[42700,"ЗАШТИТНИК ГРАЂАНА","Dragana"]
[42800,"РЕПУБЛИЧКА АГЕНЦИЈА ЗА МИРНО РЕШАВАЊЕ РАДНИХ СПОРОВА","Finka"]
[43200,"АГЕНЦИЈА ЗА БОРБУ ПРОТИВ КОРУПЦИЈЕ","Vera"]
[43300,"ПОВЕРЕНИК ЗА ЗАШТИТУ РАВНОПРАВНОСТИ","Milica"]
[43400,"РЕПУБЛИЧКА ДИРЕКЦИЈА ЗА РОБНЕ РЕЗЕРВЕ","Vera"]
[43500,"ГЕОЛОШКИ ЗАВОД СРБИЈЕ","Milesa"]
[50006,"БУЏЕТСКИ ФОНД ЗА ФИНАНСИРАЊЕ ЦРВЕНОГ КРСТА СРБИЈЕ","Milica"]
[50010,"ИНСПЕКТОРАТ ЗА РАД","Milica"]
[50011,"ЗАВОД ЗА СОЦИЈАЛНО ОСИГУРАЊЕ","Milica"]
[50021,"БУЏЕТСКИ ФОНД ЗА ПРОГРАМЕ ЗАШТИТЕ И УНАПРЕЂЕЊА ПОЛОЖАЈА ОСОБА СА ИНВАЛИДИТЕТОМ","Milica"]
[50023,"БУЏЕТСКИ ФОНД ЗА УСТАНОВЕ СОЦИЈАЛНЕ ЗАШТИТЕ","Milica"]
[50025,"БУЏЕТСКИ ФОНД ЗА ФИНАНСИРАЊЕ СПОРТА","Jelica"]
[50031,"БУЏЕТСКИ ФОНД ЗА ВАНРЕДНЕ СИТУАЦИЈЕ","Vera"]
[50032,"БУЏЕТСКИ ФОНД ЗА РАЗВОЈ ЛОВСТВА РЕПУБЛИКЕ СРБИЈЕ","Milesa"]
[50033,"ФОНД ЗА ПОДСТИЦАЊЕ РАЗВОЈА ПОЉОПРИВРЕДНЕ ПРОИЗВОДЊЕ У РЕПУБЛИЦИ","Milesa"]
[50034,"БУЏЕТСКИ ФОНД ЗА ВОДЕ РЕПУБЛИКЕ СРБИЈЕ","Milesa"]
[50035,"БУЏЕТСКИ ФОНД ЗА ШУМЕ РЕПУБЛИКЕ СРБИЈЕ","Milesa"]
[50038,"БУЏЕТСКИ ФОНД ЗА ПРОФЕСИОНАЛНУ РЕХАБИЛИТАЦИЈУ И ПОДСТИЦАЊЕ ЗАПОШЉАВАЊА ОСОБА СА ИНВАЛИДИТЕТОМ","Milica"]
[50039,"БУЏЕТСКИ ФОНД ЗА ПРОГРАМ ЛОКАЛНЕ САМОУПРАВЕ","Tanja"]
[50041,"БУЏЕТСКИ ФОНД ЗА НАЦИОНАЛНЕ МАЊИНЕ","Ana"]
[61029,"АВИО-СЛУЖБА ВЛАДЕ","Ana"]
[61030,"МИНИСТАРСТВО СПОЉНИХ ПОСЛОВА","Dragana"]
[61031,"ДИПЛОМАТСКО-КОНЗУЛАРНА ПРЕДСТАВНИШТВА","Dragana"]
[61040,"МИНИСТАРСТВО ОДБРАНЕ","Vera"]
[61041,"ИНСПЕКТОРАТ ОДБРАНЕ","Vera"]
[61042,"ВОЈНОБЕЗБЕДНОСНА АГЕНЦИЈА","Vera"]
[61043,"ВОЈНООБАВЕШТАЈНА АГЕНЦИЈА","Vera"]
[64040,"ЗАВОД ЗА ИНТЕЛЕКТУАЛНУ СВОЈИНУ","Dragana"]

{"sheet":"k4","index":8,"n_rows":198,"n_cols":2,"rows_kept":198,"cut":false,"hidden":true,"merged":[]}
[4111,"Плате, додаци и накнаде запослених"]
[4121,"Допринос за пензијско и инвалидско осигурање"]
[4122,"Допринос за здравствено осигурање"]
[4123,"Допринос за незапосленост"]
[4131,"Накнаде у натури"]
[4141,"Исплата накнада за време одсуствовања с посла на терет фондова"]
[4142,"Расходи за образовање деце запослених"]
[4143,"Отпремнине и помоћи"]
[4144,"Помоћ у медицинском лечењу запосленог или чланова уже породице и друге помоћи запосленом"]
[4151,"Накнаде трошкова за запослене"]
[4161,"Награде запосленима и остали посебни расходи"]
[4171,"Посланички додатак"]
[4181,"Судијски додатак"]
[4211,"Трошкови платног промета и банкарских услуга"]
[4212,"Енергетске услуге"]
[4213,"Комуналне услуге"]
[4214,"Услуге комуникација"]
[4215,"Трошкови осигурања"]
[4216,"Закуп имовине и опреме"]
[4219,"Остали трошкови"]
[4221,"Трошкови службених путовања у земљи"]
[4222,"Трошкови службених путовања у иностранство"]
[4223,"Трошкови путовања у оквиру редовног рада"]
[4224,"Трошкови путовања ученика "]
[4229,"Остали трошкови транспорта"]
[4231,"Административне услуге"]
[4232,"Компјутерске услуге"]
[4233,"Услуге образовања и усавршавања запослених"]
[4234,"Услуге информисања"]
[4235,"Стручне услуге"]
[4236,"Услуге за домаћинство и угоститељство"]
[4237,"Репрезентација"]
[4239,"Остале опште услуге"]
[4241,"Пољопривредне услуге"]
[4242,"Услуге образовања, културе и спорта"]
[4243,"Медицинске услуге"]
[4244,"Услуге одржавања аутопутева "]
[4245,"Услуге одржавања националних паркова и природних површина"]
[4246,"Услуге очувања животне средине, науке и геодетске услуге"]
[4249,"Остале специјализоване услуге"]
[4251,"Текуће поправке и одржавање зграда и објеката"]
[4252,"Текуће поправке и одржавање опреме"]
[4261,"Административни материјал"]
[4262,"Материјали за пољопривреду"]
[4263,"Материјали за образовање и усавршавање запослених "]
[4264,"Материјали за саобраћај"]
[4265,"Материјали за очување животне средине и науку"]
[4266,"Материјали за образовање, културу и спорт"]
[4267,"Медицински и лабораторијски материјали"]
[4268,"Материјали за одржавање хигијене и угоститељство"]
[4269,"Материјали за посебне намене"]
[4311,"Амортизација зграда и грађевинских објеката"]
[4312,"Амортизација опреме"]
[4313,"Амортизација осталих некретнина и опреме"]
[4321,"Амортизација култивисане имовине"]
[4331,"Употреба драгоцености"]
[4341,"Употреба земљишта"]
[4342,"Употреба подземног блага"]
[4343,"Употреба шума и вода"]
[4351,"Амортизација нематеријалне имовине"]
[4411,"Отплата камата на домаће хартије од вредности"]
[4412,"Отплата камата осталим нивоима власти"]
[4413,"Отплата камата домаћим јавним финансијским институцијама"]
[4414,"Отплата камата домаћим пословним банкама"]
[4415,"Отплата камата осталим домаћим кредиторима"]
[4416,"Отплата камата домаћинствима у земљи"]
[4417,"Отплата камата на домаће финансијске деривате"]
[4418,"Отплата камата на домаће менице"]
[4419,"Финансијске промене на финансијским лизинзима"]
[4421,"Отплата камата на стране хартије од вредности"]
[4422,"Отплата камата страним владама"]
[4423,"Отплата камата мултилатералним институцијама"]
[4424,"Отплата камата страним пословним банкама"]
[4425,"Отплата камата осталим страним кредиторима"]
[4426,"Отплата камата на стране финансијске деривате"]
[4431,"Отплата камата по гаранцијама"]
[4441,"Негативне курсне разлике"]
[4442,"Казне за кашњење"]
[4443,"Таксе које проистичу из задуживања"]
[4511,"Текуће субвенције јавним нефинансијским предузећима и организацијама"]
[4512,"Капиталне субвенције јавним нефинансијским предузећима и организацијама"]
[4521,"Текуће субвенције приватним финансијским институцијама"]
[4522,"Капиталне субвенције приватним финансијским институцијама"]
[4531,"Текуће субвенције јавним финансијским институцијама"]
[4532,"Капиталне субвенције јавним финансијским институцијама"]
[4541,"Текуће субвенције приватним предузећима"]
[4542,"Капиталне субвенције приватним предузећима"]
[4611,"Текуће донације страним владама"]
[4612,"Капиталне донације страним владама"]
[4621,"Текуће дотације међународним организацијама"]
[4622,"Капиталне дотације међународним организацијама"]
[4631,"Текући трансфери осталим нивоима власти"]
[4632,"Капитални трансфери осталим нивоима власти"]
[4641,"Текуће дотације организацијама обавезног социјалног осигурања"]
[4642,"Капиталне дотације организацијама обавезног социјалног осигурања"]
[4651,"Остале текуће дотације и трансфери"]
[4652,"Остале капиталне дотације и трансфери"]
[4711,"Права из социјалног осигурања која се исплаћују непосредно домаћинствима"]
[4712,"Права из социјалног осигурања која се исплаћују непосредно пружаоцима услуга"]
[4719,"Трансфери другим организацијама обавезног социјалног осигурања за доприносе за осигурање"]
[4721,"Накнаде из буџета у случају болести и инвалидности"]
[4722,"Накнаде из буџета за породиљско одсуство "]
[4723,"Накнаде из буџета за децу и породицу "]
[4724,"Накнаде из буџета за случај незапослености"]
[4725,"Старосне и породичне пензије из буџета"]
[4726,"Накнаде из буџета у случају смрти"]
[4727,"Накнаде из буџета за образовање, културу, науку и спорт"]
[4728,"Накнаде из буџета за становање и живот"]
[4729,"Остале накнаде из буџета"]
[4811,"Дотације непрофитним организацијама које пружају помоћ домаћинствима"]
[4819,"Дотације осталим непрофитним институцијама"]
[4821,"Остали порези "]
[4822,"Обавезне таксе"]
[4823,"Новчане казне и пенали"]
[4831,"Новчане казне и пенали по решењу судова "]
[4841,"Накнада штете за повреде или штету насталу услед елементарних непогода"]
[4842,"Накнада штете од дивљачи "]
[4851,"Накнада штете за повреде или штету нанетe од стране државних органа"]
[4891,"Расходи који се финансирају из средстава за реализацију Националног инвестиционог плана"]
[4941,"Расходи за запослене"]
[4942,"Коришћење услуга и роба"]
[4943,"Амортизација и употреба средстава за рад"]
[4944,"Отплата камата и пратећи трошкови задуживања"]
[4945,"Субвенције"]
[4947,"Права из социјалног осигурања"]
[4948,"Остали расходи"]
[4951,"Основна средства"]
[4952,"Залихе"]
[4953,"Драгоцености"]
[4954,"Природна имовина "]
[4961,"Отплата главнице "]
[4962,"Набавка финансијске имовине"]
[4991,"Средства резерве"]
[5111,"Куповина зграда и објеката"]
[5112,"Изградња зграда и објеката"]
[5113,"Капитално одржавање зграда и објеката"]
[5114,"Пројектно планирање"]
[5121,"Опрема за саобраћај"]
[5122,"Административна опрема"]
[5123,"Опрема за пољопривреду"]
[5124,"Опрема за заштиту животне средине "]
[5125,"Медицинска и лабораторијска опрема"]
[5126,"Опрема за образовање, науку, културу и спорт"]
[5127,"Опрема за војску"]
[5128,"Опрема за јавну безбедност"]
[5129,"Опрема за производњу, моторна, непокретна и немоторна опрема"]
[5131,"Остале некретнине и опрема"]
[5141,"Култивисана имовина"]
[5151,"Нематеријална имовина"]
[5211,"Робне резерве"]
[5221,"Залихе материјала"]
[5222,"Залихе недовршене производње"]
[5223,"Залихе готових производа"]
[5231,"Залихе робе за даљу продају"]
[5311,"Драгоцености"]
[5411,"Земљиште"]
[5421,"Копови"]
[5431,"Шуме"]
[5432,"Воде"]
[5511,"Нефинансијска имовина која се финансира из средстава за реализацију Националног инвестиционог плана"]
[]
[6111,"Отплата главнице на домаће хартије од вредности, изузев акција "]
[6112,"Отплата главнице осталим нивоима власти"]
[6113,"Отплата главнице домаћим јавним финансијским институцијама"]
[6114,"Отплата главнице домаћим пословним банкама "]
[6115,"Отплата главнице осталим домаћим кредиторима"]
[6116,"Отплата главнице домаћинствима у земљи "]
[6117,"Отплата главнице на домаће финансијске деривате"]
[6118,"Отплата домаћих меница"]
[6119,"Исправка унутрашњег дуга"]
[6121,"Отплата главнице на стране хартије од вредности, изузев акција "]
[6122,"Отплата главнице страним владама"]
[6123,"Отплата главнице мултилатералним институцијама"]
[6124,"Отплата главнице страним пословним банкама"]
[6125,"Отплата главнице осталим страним кредиторима"]
[6126,"Отплата главнице на стране финансијске деривате"]
[6129,"Исправка спољног дуга"]
[6131,"Отплата главнице по гаранцијама"]
[6141,"Отплата главнице за финансијски лизинг"]
[6211,"Набавка домаћих хартија од вредности, изузев акција"]
[6212,"Кредити осталим нивоима власти"]
[6213,"Кредити домаћим јавним финансијским институцијама"]
[6214,"Кредити домаћим пословним банкама "]
[6215,"Кредити домаћим нефинансијским јавним институцијама "]
[6216,"Кредити физичким лицима и домаћинствима у земљи"]
[6217,"Кредити невладиним организацијама у земљи"]
[6218,"Кредити домаћим нефинансијским приватним предузећима"]
[6219,"Набавка домаћих акција и осталог капитала"]
[6221,"Набавка страних хартија од вредности, изузев акција"]
[6222,"Кредити страним владама"]
[6223,"Кредити међународним организацијама "]
[6224,"Кредити страним пословним банкама"]
[6225,"Кредити страним нефинансијским институцијама"]
[6226,"Кредити страним невладиним организацијама"]
[6227,"Набавка страних акција и осталог капитала"]
[6228,"Куповина стране валуте"]
[6231,"Набавка финансијске имовине која се финансира из средстава за реализацију Националног инвестиционог плана"]
[6999,"Контра књижење – издаци за отплату главнице и набавку финансијске имовине"]

{"sheet":"izvori","index":9,"n_rows":15,"n_cols":2,"rows_kept":15,"cut":false,"hidden":true,"merged":[]}
["Извор","Опис"]
[1,"Приходи из буџета"]
[4,"Сопствени приходи буџетских корисника"]
[{"$f":"+A3+1","v":5},"Донације од иностраних земаља"]
[6,"Донације од међународних организација"]
[7,"Донације од осталих нивоа власти"]
[8,"Донације од невладиних организација и појединаца"]
[9,"Примања од продаје нефинансијске имовине"]
[10,"Примања од домаћих задуживања"]
[11,"Примања од иностраних задуживања"]
[12,"Примања од отплате датих кредита и продаје нефинансијске имовине"]
[13,"Нераспоређени вишак прихода из ранијих година"]
[14,"Неутрошена средства од приватизације из претходних година"]
[15,"Неутрошена средства од донација из претходних година"]
[16,"Родитељски динар за ваннаставне активности"]

{"sheet":"projekti","index":10,"n_rows":50,"n_cols":11,"rows_kept":50,"cut":false,"hidden":true,"merged":[]}
["kljuc","Шифра","Функција","Назив капиталног пројекта"," 2013"," 2014","  2015","proj","Назив органа",0,1000]
[{"$f":"CONCATENATE(B2,C2)","v":"10300330"},10300,330,"Основни суд у Краљеву – Санација и реконструкција објекта Основног суда у циљу отклањања последица  катастрофалног земљотреса ",60000000,37000000,0,{"$f":"CONCATENATE(A2,K2)","v":"103003301001"},"МИНИСТАРСТВО ПРАВДЕ И ДРЖАВНЕ УПРАВЕ",{"$f":"CONCATENATE(B2,C3,\"1001\")","v":"103003301001"},{"$f":"1000+ROW()-1","v":1001}]
["10300330",10300,330,"Прекршајни и Привредни суд у Шапцу - Решавање смештајног проблема (набавка, реконструкција и адаптација објекта) ",50000000,30000000,20000000,"103003301002","МИНИСТАРСТВО ПРАВДЕ И ДРЖАВНЕ УПРАВЕ",{"$f":"CONCATENATE(B3,C4,\"1001\")","v":"103003301001"},1002]
["10300330",10300,330,"Прекршајни суд у Београду (набавка, реконструкција и адаптација објекта) ",0,600000000,400000000,"103003301003","МИНИСТАРСТВО ПРАВДЕ И ДРЖАВНЕ УПРАВЕ",null,1003]
["10300330",10300,330," Надоградња/доградња и реконструкција зграде Основног суда у Лозници за потребе смештаја правосудних органа",40000000,10000000,0,"103003301004","МИНИСТАРСТВО ПРАВДЕ И ДРЖАВНЕ УПРАВЕ",null,1004]
["10300330",10300,330,"Прекршајни суд у Ужицу – Решавање смештајног проблема (набавка, реконструкција и адаптација објекта)",50000000,30000000,20000000,"103003301005","МИНИСТАРСТВО ПРАВДЕ И ДРЖАВНЕ УПРАВЕ",null,1005]
["10300330",10300,330,"Набавка, реконструкција и адаптација објекта за потребе смештаја одељења Првог основног суда у Београду (зграда „Аероинжењеринга”)",260000000,300000000,0,"103003301006","МИНИСТАРСТВО ПРАВДЕ И ДРЖАВНЕ УПРАВЕ",null,1006]
["10300330",10300,330,"Реконструкција и адаптација објекта „ПАЛАТА ПРАВДЕ” у Београду",0,1100000000,1400000000,"103003301007","МИНИСТАРСТВО ПРАВДЕ И ДРЖАВНЕ УПРАВЕ",null,1007]
["10300330",10300,330,"Реконструкција и адаптација објекта у ул. Катанићева бр. 15 у Београду (бивши Војнотехнички институт) за потребе правосудних органа",0,500000000,500000000,"103003301008","МИНИСТАРСТВО ПРАВДЕ И ДРЖАВНЕ УПРАВЕ",null,1008]
["10300330",10300,330,"Набавка, реконструкција и адаптација објекта за потребе смештаја Прекршајног и Привредног суда у Нишу ",100000000,100000000,100000000,"103003301009","МИНИСТАРСТВО ПРАВДЕ И ДРЖАВНЕ УПРАВЕ",null,1009]
["10300330",10300,330,"Основни суд у Бору -  (изградња новог или реконструкција адекватног постојећег простора) ",10000000,100000000,90000000,"103003301010","МИНИСТАРСТВО ПРАВДЕ И ДРЖАВНЕ УПРАВЕ",null,1010]
["10300330",10300,330,"Набавка неопходне опреме за функционисање правосудних органа ",100000000,200000000,200000000,"103003301011","МИНИСТАРСТВО ПРАВДЕ И ДРЖАВНЕ УПРАВЕ",null,1011]
["10500110",10500,110,"Експропријација земљишта у циљу изградње капиталних пројеката",3513993000,4312553000,4341535000,"105001101012","МИНИСТАРСТВО ФИНАНСИЈА И ПРИВРЕДЕ",null,1012]
["10500473",10500,473,"Изградња туристичке инфраструктуре и супраструктуре у туристичким центрима",215632000,2626409000,2867929000,"105004731013","МИНИСТАРСТВО ФИНАНСИЈА И ПРИВРЕДЕ",null,1013]
["10502110",10502,110,"Изградња граничног прелаза Гостун",84600000,157150000,155750000,"105021101014","УПРАВА ЦАРИНА",null,1014]
["10502110",10502,110,"Изградња граничног прелаза Бајмок",5200000,128750000,85800000,"105021101015","УПРАВА ЦАРИНА",null,1015]
["10502110",10502,110,"Изградња граничног прелаза Ватин",3400000,115875000,55800000,"105021101016","УПРАВА ЦАРИНА",null,1016]
["10502110",10502,110,"Изградња граничног прелаза Котроман",2200000,108426000,107600000,"105021101017","УПРАВА ЦАРИНА",null,1017]
["10502110",10502,110,"Изградња граничног прелаза Бајина Башта",22600000,50000000,30000000,"105021101018","УПРАВА ЦАРИНА",null,1018]
["10502110",10502,110,"Изградња нове царинске испоставе Београд",null,33000000,100000000,"105021101019","УПРАВА ЦАРИНА",null,1019]
["10505110",10505,110,"Јачање безбедносних капацитета у транспорту новца",27000000,27000000,27000000,"105051101020","УПРАВА ЗА ТРЕЗОР",null,1020]
["10505110",10505,110,"Проширење и технолошко унапређење капацитета у циљу ефикаснијег пословања",142722000,177120000,198090000,"105051101021","УПРАВА ЗА ТРЕЗОР",null,1021]
["10505110",10505,110,"Пројекат интегрисаног надзора новчаних токова у Управи за трезор",27197000,2000000,2000000,"105051101022","УПРАВА ЗА ТРЕЗОР",null,1022]
["10505110",10505,110,"Пројекат гасификације, топлификације и електрификације унутрашњих јединица",18643000,10000000,5000000,"105051101023","УПРАВА ЗА ТРЕЗОР",null,1023]
["10505110",10505,110,"Унапређење аутоматизације пословних процеса",62509000,125760000,74270000,"105051101024","УПРАВА ЗА ТРЕЗОР",null,1024]
["10600310",10600,310,"Набавка потребне опреме (патролних возила) у циљу проширења материјално техничких капацитета неопходних за рад полиције",30000000,30000000,30000000,"106003101025","МИНИСТАРСТВО УНУТРАШЊИХ ПОСЛОВА",null,1025]
["10600310",10600,310,"Јачање оперативно-техничких капацитета",97100000,174110510,20000000,"106003101026","МИНИСТАРСТВО УНУТРАШЊИХ ПОСЛОВА",null,1026]
["10702420",10702,420,"Изградња нових и ревитализација постојећих система за наводњавање",250000000,700000000,800000000,"107024201027","УПРАВА ЗА ПОЉОПРИВРЕДНО ЗЕМЉИШТЕ",null,1027]
["11801820",11801,820,"Санација, адаптација и доградња Музеја савремене уметности",124569890,367873000,130000000,"118018201028","УСТАНОВЕ КУЛТУРЕ",null,1028]
["11801820",11801,820,"Санација и адаптација Народног музеја",0,620000000,403000000,"118018201029","УСТАНОВЕ КУЛТУРЕ",null,1029]
["13800810",13800,810,"Изградња атлетске дворане у Београду",229252202.59999999,300000000,0,"138008101030","МИНИСТАРСТВО ОМЛАДИНЕ И СПОРТА",null,1030]
["13800810",13800,810,"Изградња спортске дворане за кошарку у Београду",30000000,148000000,0,"138008101031","МИНИСТАРСТВО ОМЛАДИНЕ И СПОРТА",null,1031]
["14300411",14300,411,"  М 1. 11 Крагујевац - Баточина ",1051997000,1504000000,null,"143004111032","МИНИСТАРСТВО РЕГИОНАЛНОГ РАЗВОЈА И ЛОКАЛНЕ САМОУПРАВЕ",null,1032]
[{"$f":"CONCATENATE(B34,C34)","v":"14300411"},14300,411,"Реконструкција пута Ниш-Јабучко равниште",55500000,100000000,null,{"$f":"CONCATENATE(A34,K34)","v":"143004111033"},"МИНИСТАРСТВО РЕГИОНАЛНОГ РАЗВОЈА И ЛОКАЛНЕ САМОУПРАВЕ",null,{"$f":"1000+ROW()-1","v":1033}]
["14400450",14400,450,"Коридор XI -извођење радова на изградњи аутопута Е-763, Београд -Јужни Јадран, деоница: Уб - Лајковац км 40+645.28 до км 53+139.91",1150714000,2339733908,500000000,"144004501034","МИНИСТАРСТВО САОБРАЋАЈА",null,1034]
["14400450",14400,450," Изградња моста Земун-Борча са припадајућим саобраћајницама",918804000,882969608,107896642,"144004501035","МИНИСТАРСТВО САОБРАЋАЈА",null,1035]
["14400450",14400,450,"Коридор X - извођење радова на изградњи леве траке аутопута Е-75 од граничног прелаза „Хоргош”  до Новог Сада.",532462000,null,null,"144004501036","МИНИСТАРСТВО САОБРАЋАЈА",null,1036]
["14500620",14500,620,"Изградња моста Љубовија - Братунац",0,300000000,120000000,"145006201037","МИНИСТАРСТВО ГРАЂЕВИНАРСТВА И УРБАНИЗМА",null,1037]
["14700460",14700,460,"Прелазак на дигитално емитовање земаљског ТВ сигнала",300000000,450000000,null,"147004601038","МИНИСТАРСТВО СПОЉНЕ И УНУТРАШЊЕ ТРГОВИНЕ И ТЕЛЕКОМУНИКАЦИЈА",null,1038]
["40200110",40200,110,"Модернизација информационог система Пореске управе",1275030400,1185568000,981756000,"402001101039","ПОРЕСКА УПРАВА",null,1039]
["41100130",41100,130,"Набавка софтверских лиценци",559004000,1299616000,1358620000,"411001301040","УПРАВА ЗА ЗАЈЕДНИЧКЕ ПОСЛОВЕ РЕПУБЛИЧКИХ ОРГАНА",null,1040]
["41300360",41300,360,"Адаптација балистичког тунела",64800000,105200000,0,"413003601041","БЕЗБЕДНОСНО - ИНФОРМАТИВНА АГЕНЦИЈА",null,1041]
["41300360",41300,360,"Набавка специјалне опреме",44750000,64250000,null,"413003601042","БЕЗБЕДНОСНО - ИНФОРМАТИВНА АГЕНЦИЈА",null,1042]
["50031320",50031,320,"Заштита и спасавање грађана, добара, имовине и животне средине Републике Србије од последица ванредних ситуација ",81148000,988805000,1058641000,"500313201043","БУЏЕТСКИ ФОНД ЗА ВАНРЕДНЕ СИТУАЦИЈЕ",null,1043]
["50034630",50034,630,"Брана са акумулацијом „ПРВОНЕК” Врање",70000000,null,0,"500346301044","БУЏЕТСКИ ФОНД ЗА ВОДЕ РЕПУБЛИКЕ СРБИЈЕ",null,1044]
["50034630",50034,630,"Брана са акумулацијом „СТУБО - РОВНИ” Ваљево",123286000,264714000,112000000,"500346301045","БУЏЕТСКИ ФОНД ЗА ВОДЕ РЕПУБЛИКЕ СРБИЈЕ",null,1045]
["50034630",50034,630,"Брана са акумулацијом „АРИЉЕ” профил „СВРАЧКОВО” Ариље",263142000,700000000,448000000,"500346301046","БУЏЕТСКИ ФОНД ЗА ВОДЕ РЕПУБЛИКЕ СРБИЈЕ",null,1046]
["50034630",50034,630,"Изградња главног колектора за насеља  Грабовац, Дубље и Црквенац - Свилајнац",20468000,25000000,25000000,"500346301047","БУЏЕТСКИ ФОНД ЗА ВОДЕ РЕПУБЛИКЕ СРБИЈЕ",null,1047]
["50034630",50034,630,"Изградња водних објеката за снабдевање водом насеља Суботица и Роанда регионалног система Деспотовац - Свилајнац",29545000,20000000,20000000,"500346301048","БУЏЕТСКИ ФОНД ЗА ВОДЕ РЕПУБЛИКЕ СРБИЈЕ",null,1048]
["61040210",61040,210,"Опремање и инфраструктура",2003488000,4685549200,4652304526,"610402101049","МИНИСТАРСТВО ОДБРАНЕ",null,1049]